Workbook

Sheet MYFF - Cabo Verde
A1: Multi-Year Funding Framework (MYFF) - United Nations Sustainable Development Cooperation Framework (UNSDCF) 2023-2027 Cabo Verde
A2: Vision: All people in Cabo Verde realize their full potential in a consolidated democratic, safe, inclusive, equitable and resilient country, without extreme poverty, dully integrated in the region
A3: Cooperation Framework Outcome | B3: Predicted cost of the outcome | C3: UN Entity
D4: MYFF (2023-2027) | I4: YEAR 1 (2023) | M4: YEAR 2 (2024) | Q4: YEAR 3 (2025) | U4: YEAR 4 (2026) | Y4: YEAR 5 (2027)
D5: Total Funding Required | E5: Available Funding | F5: Source of Available Funding | G5: Type of Available Funding (assessed, core, non-core) | H5: Funding to be Mobilized (D - E) | I5: Total Funding Required | J5: Available Funding | K5: Source of Available Funding | L5: Funding to be Mobilized | M5: Total Funding Required | N5: Available Funding | O5: Source of Available Funding | P5: Funding to be Mobilized | Q5: Total Funding Required | R5: Available Funding | S5: Source of Available Funding | T5: Funding to be Mobilized | U5: Total Funding Required | V5: Available Funding | W5: Source of Available Funding | X5: Funding to be Mobilized | Y5: Total Funding Required | Z5: Available Funding | AA5: Source of Available Funding | AB5: Funding to be Mobilized
A6: Outcome 1.1. By 2027, more people, especially those living in the most vulnerable and marginalized situations and those living with disabilities, have equitable access to and use of high-quality, resilient, gender-responsive, and modern essential social services and protection | B6: =D17 -> 18031952 | C6: ILO | D6: =SUM(I6+M6+Q6+U6+Y6) -> 390298 | E6: =SUM(J6+N6+R6+V6+Z6) -> 390298 | H6: =D6-E6 -> 0 | I6: ='MYFF - Outcome 1.1'!I6+'MYFF - Outcome 1.1'!I15+'MYFF - Outcome 1.1'!I26 -> 173872 | J6: ='MYFF - Outcome 1.1'!J6+'MYFF - Outcome 1.1'!J15+'MYFF - Outcome 1.1'!J26 -> 173872 | L6: =I6-J6 -> 0 | M6: ='MYFF - Outcome 1.1'!M6+'MYFF - Outcome 1.1'!M15+'MYFF - Outcome 1.1'!M26 -> 154952 | N6: ='MYFF - Outcome 1.1'!N6+'MYFF - Outcome 1.1'!N15+'MYFF - Outcome 1.1'!N26 -> 154952 | P6: =M6-N6 -> 0 | Q6: ='MYFF - Outcome 1.1'!Q6+'MYFF - Outcome 1.1'!Q15+'MYFF - Outcome 1.1'!Q26 -> 31474 | R6: ='MYFF - Outcome 1.1'!R6+'MYFF - Outcome 1.1'!R15+'MYFF - Outcome 1.1'!R26 -> 31474 | T6: =Q6-R6 -> 0 | U6: ='MYFF - Outcome 1.1'!U6+'MYFF - Outcome 1.1'!U15+'MYFF - Outcome 1.1'!U26 -> 30000 | V6: ='MYFF - Outcome 1.1'!V6+'MYFF - Outcome 1.1'!V15+'MYFF - Outcome 1.1'!V26 -> 30000 | X6: =U6-V6 -> 0 | Y6: ='MYFF - Outcome 1.1'!Y6+'MYFF - Outcome 1.1'!Y15+'MYFF - Outcome 1.1'!Y26 -> 0 | Z6: ='MYFF - Outcome 1.1'!Z6+'MYFF - Outcome 1.1'!Z15+'MYFF - Outcome 1.1'!Z26 -> 0 | AB6: =Y6-Z6 -> 0
C7: IOM | D7: 822675 | E7: 42675 | H7: 780000 | I7: ='MYFF - Outcome 1.1'!I16 -> 22675 | J7: ='MYFF - Outcome 1.1'!J16 -> 22675 | L7: ='MYFF - Outcome 1.1'!L16 -> 0 | M7: ='MYFF - Outcome 1.1'!M16 -> 20000 | N7: ='MYFF - Outcome 1.1'!N16 -> 20000 | P7: ='MYFF - Outcome 1.1'!P16 -> 0 | Q7: ='MYFF - Outcome 1.1'!Q16 -> 280000 | R7: ='MYFF - Outcome 1.1'!R16 -> 0 | T7: ='MYFF - Outcome 1.1'!T16 -> 280000 | U7: ='MYFF - Outcome 1.1'!U16 -> 250000 | V7: ='MYFF - Outcome 1.1'!V16 -> 0 | X7: ='MYFF - Outcome 1.1'!X16 -> 250000 | Y7: ='MYFF - Outcome 1.1'!Y16 -> 250000 | Z7: ='MYFF - Outcome 1.1'!Z16 -> 0 | AB7: ='MYFF - Outcome 1.1'!AB16 -> 250000
C8: ITU | D8: =SUM(I8+M8+Q8+U8+Y8) -> 80000 | E8: =SUM(J8+N8+R8+V8+Z8) -> 35000 | H8: =D8-E8 -> 45000 | I8: ='MYFF - Outcome 1.1'!I20+'MYFF - Outcome 1.1'!I27 -> 50000 | J8: ='MYFF - Outcome 1.1'!J20+'MYFF - Outcome 1.1'!J27 -> 15000 | L8: ='MYFF - Outcome 1.1'!L20+'MYFF - Outcome 1.1'!L27 -> 35000 | M8: ='MYFF - Outcome 1.1'!M20+'MYFF - Outcome 1.1'!M27 -> 30000 | N8: ='MYFF - Outcome 1.1'!N20+'MYFF - Outcome 1.1'!N27 -> 20000 | P8: ='MYFF - Outcome 1.1'!P20+'MYFF - Outcome 1.1'!P27 -> 10000 | Q8: ='MYFF - Outcome 1.1'!Q20+'MYFF - Outcome 1.1'!Q27 -> 0 | R8: ='MYFF - Outcome 1.1'!R20+'MYFF - Outcome 1.1'!R27 -> 0 | T8: ='MYFF - Outcome 1.1'!T20+'MYFF - Outcome 1.1'!T27 -> 0 | U8: ='MYFF - Outcome 1.1'!U20+'MYFF - Outcome 1.1'!U27 -> 0 | V8: ='MYFF - Outcome 1.1'!V20+'MYFF - Outcome 1.1'!V27 -> 0 | X8: ='MYFF - Outcome 1.1'!X20+'MYFF - Outcome 1.1'!X27 -> 0 | Y8: ='MYFF - Outcome 1.1'!Y20+'MYFF - Outcome 1.1'!Y27 -> 0 | Z8: ='MYFF - Outcome 1.1'!Z20+'MYFF - Outcome 1.1'!Z27 -> 0 | AB8: ='MYFF - Outcome 1.1'!AB20+'MYFF - Outcome 1.1'!AB27 -> 0
C9: UNDP | D9: 401000 | E9: 292000 | H9: 109000 | I9: ='MYFF - Outcome 1.1'!I7+'MYFF - Outcome 1.1'!I17 -> 161000 | J9: ='MYFF - Outcome 1.1'!J7+'MYFF - Outcome 1.1'!J17 -> 114000 | L9: ='MYFF - Outcome 1.1'!L7+'MYFF - Outcome 1.1'!L17 -> 47000 | M9: ='MYFF - Outcome 1.1'!M7+'MYFF - Outcome 1.1'!M17 -> 213000 | N9: ='MYFF - Outcome 1.1'!N7+'MYFF - Outcome 1.1'!N17 -> 168000 | P9: ='MYFF - Outcome 1.1'!P7+'MYFF - Outcome 1.1'!P17 -> 45000 | Q9: ='MYFF - Outcome 1.1'!Q7+'MYFF - Outcome 1.1'!Q17 -> 27000 | R9: ='MYFF - Outcome 1.1'!R7+'MYFF - Outcome 1.1'!R17 -> 10000 | T9: ='MYFF - Outcome 1.1'!T7+'MYFF - Outcome 1.1'!T17 -> 17000 | U9: ='MYFF - Outcome 1.1'!U7+'MYFF - Outcome 1.1'!U17 -> 0 | V9: ='MYFF - Outcome 1.1'!V7+'MYFF - Outcome 1.1'!V17 -> 0 | X9: ='MYFF - Outcome 1.1'!X7+'MYFF - Outcome 1.1'!X17 -> 0 | Y9: ='MYFF - Outcome 1.1'!Y7+'MYFF - Outcome 1.1'!Y17 -> 0 | Z9: ='MYFF - Outcome 1.1'!Z7+'MYFF - Outcome 1.1'!Z17 -> 0 | AB9: ='MYFF - Outcome 1.1'!AB7+'MYFF - Outcome 1.1'!AB17 -> 0
C10: UNESCO | D10: 546000 | E10: 123000 | H10: 423000 | I10: ='MYFF - Outcome 1.1'!I18 -> 0 | J10: ='MYFF - Outcome 1.1'!J18 -> 15000 | L10: ='MYFF - Outcome 1.1'!L18 -> -15000 | M10: ='MYFF - Outcome 1.1'!M18 -> 108000 | N10: ='MYFF - Outcome 1.1'!N18 -> 108000 | P10: ='MYFF - Outcome 1.1'!P18 -> 0 | Q10: ='MYFF - Outcome 1.1'!Q18 -> 150000 | R10: ='MYFF - Outcome 1.1'!R18 -> 0 | T10: ='MYFF - Outcome 1.1'!T18 -> 150000 | U10: ='MYFF - Outcome 1.1'!U18 -> 150000 | V10: ='MYFF - Outcome 1.1'!V18 -> 0 | X10: ='MYFF - Outcome 1.1'!X18 -> 150000 | Y10: ='MYFF - Outcome 1.1'!Y18 -> 138000 | Z10: ='MYFF - Outcome 1.1'!Z18 -> 0 | AB10: ='MYFF - Outcome 1.1'!AB18 -> 138000
C11: UNFPA | D11: 1134350 | E11: 1044350 | H11: 90000 | I11: ='MYFF - Outcome 1.1'!I8+'MYFF - Outcome 1.1'!I19+'MYFF - Outcome 1.1'!I28 -> 235000 | J11: ='MYFF - Outcome 1.1'!J8+'MYFF - Outcome 1.1'!J19+'MYFF - Outcome 1.1'!J28 -> 235000 | L11: ='MYFF - Outcome 1.1'!L8+'MYFF - Outcome 1.1'!L19+'MYFF - Outcome 1.1'!L28 -> 0 | M11: ='MYFF - Outcome 1.1'!M8+'MYFF - Outcome 1.1'!M19+'MYFF - Outcome 1.1'!M28 -> 420000 | N11: ='MYFF - Outcome 1.1'!N8+'MYFF - Outcome 1.1'!N19+'MYFF - Outcome 1.1'!N28 -> 420000 | P11: ='MYFF - Outcome 1.1'!P8+'MYFF - Outcome 1.1'!P19+'MYFF - Outcome 1.1'!P28 -> 0 | Q11: ='MYFF - Outcome 1.1'!Q8+'MYFF - Outcome 1.1'!Q19+'MYFF - Outcome 1.1'!Q28 -> 200000 | R11: ='MYFF - Outcome 1.1'!R8+'MYFF - Outcome 1.1'!R19+'MYFF - Outcome 1.1'!R28 -> 170000 | T11: ='MYFF - Outcome 1.1'!T8+'MYFF - Outcome 1.1'!T19+'MYFF - Outcome 1.1'!T28 -> 30000 | U11: ='MYFF - Outcome 1.1'!U8+'MYFF - Outcome 1.1'!U19+'MYFF - Outcome 1.1'!U28 -> 200000 | V11: ='MYFF - Outcome 1.1'!V8+'MYFF - Outcome 1.1'!V19+'MYFF - Outcome 1.1'!V28 -> 170000 | X11: ='MYFF - Outcome 1.1'!X8+'MYFF - Outcome 1.1'!X19+'MYFF - Outcome 1.1'!X28 -> 30000 | Y11: ='MYFF - Outcome 1.1'!Y8+'MYFF - Outcome 1.1'!Y19+'MYFF - Outcome 1.1'!Y28 -> 79350 | Z11: ='MYFF - Outcome 1.1'!Z8+'MYFF - Outcome 1.1'!Z19+'MYFF - Outcome 1.1'!Z28 -> 49350 | AB11: ='MYFF - Outcome 1.1'!AB8+'MYFF - Outcome 1.1'!AB19+'MYFF - Outcome 1.1'!AB28 -> 30000
C12: UNHABITAT | D12: 720191 | E12: 243455 | H12: 476736 | I12: ='MYFF - Outcome 1.1'!I9 -> 30000 | J12: ='MYFF - Outcome 1.1'!J9 -> 30000 | L12: ='MYFF - Outcome 1.1'!L9 -> 0 | M12: ='MYFF - Outcome 1.1'!M9 -> 133455 | N12: ='MYFF - Outcome 1.1'!N9 -> 133455 | P12: ='MYFF - Outcome 1.1'!P9 -> 0 | Q12: ='MYFF - Outcome 1.1'!Q9 -> 200000 | R12: ='MYFF - Outcome 1.1'!R9 -> 80000 | T12: ='MYFF - Outcome 1.1'!T9 -> 120000 | U12: ='MYFF - Outcome 1.1'!U9 -> 200000 | V12: ='MYFF - Outcome 1.1'!V9 -> 0 | X12: ='MYFF - Outcome 1.1'!X9 -> 200000 | Y12: ='MYFF - Outcome 1.1'!Y9 -> 156736 | Z12: ='MYFF - Outcome 1.1'!Z9 -> 0 | AB12: ='MYFF - Outcome 1.1'!AB9 -> 156736
C13: UNICEF | D13: 7053914 | E13: 3724214 | H13: 3329700 | I13: ='MYFF - Outcome 1.1'!I10+'MYFF - Outcome 1.1'!I21+'MYFF - Outcome 1.1'!I29 -> 2294414 | J13: ='MYFF - Outcome 1.1'!J10+'MYFF - Outcome 1.1'!J21+'MYFF - Outcome 1.1'!J29 -> 2219414 | L13: ='MYFF - Outcome 1.1'!L10+'MYFF - Outcome 1.1'!L21+'MYFF - Outcome 1.1'!L29 -> 75000 | M13: ='MYFF - Outcome 1.1'!M10+'MYFF - Outcome 1.1'!M21+'MYFF - Outcome 1.1'!M29 -> 1312500 | N13: ='MYFF - Outcome 1.1'!N10+'MYFF - Outcome 1.1'!N21+'MYFF - Outcome 1.1'!N29 -> 1154000 | P13: ='MYFF - Outcome 1.1'!P10+'MYFF - Outcome 1.1'!P21+'MYFF - Outcome 1.1'!P29 -> 158500 | Q13: ='MYFF - Outcome 1.1'!Q10+'MYFF - Outcome 1.1'!Q21+'MYFF - Outcome 1.1'!Q29 -> 1947000 | R13: ='MYFF - Outcome 1.1'!R10+'MYFF - Outcome 1.1'!R21+'MYFF - Outcome 1.1'!R29 -> 340800 | T13: ='MYFF - Outcome 1.1'!T10+'MYFF - Outcome 1.1'!T21+'MYFF - Outcome 1.1'!T29 -> 1606200 | U13: ='MYFF - Outcome 1.1'!U10+'MYFF - Outcome 1.1'!U21+'MYFF - Outcome 1.1'!U29 -> 910000 | V13: ='MYFF - Outcome 1.1'!V10+'MYFF - Outcome 1.1'!V21+'MYFF - Outcome 1.1'!V29 -> 10000 | X13: ='MYFF - Outcome 1.1'!X10+'MYFF - Outcome 1.1'!X21+'MYFF - Outcome 1.1'!X29 -> 900000 | Y13: ='MYFF - Outcome 1.1'!Y10+'MYFF - Outcome 1.1'!Y21+'MYFF - Outcome 1.1'!Y29 -> 590000 | Z13: ='MYFF - Outcome 1.1'!Z10+'MYFF - Outcome 1.1'!Z21+'MYFF - Outcome 1.1'!Z29 -> 0 | AB13: ='MYFF - Outcome 1.1'!AB10+'MYFF - Outcome 1.1'!AB21+'MYFF - Outcome 1.1'!AB29 -> 590000
C14: UNODC | D14: 1120302 | E14: 385802 | H14: 734500 | I14: ='MYFF - Outcome 1.1'!I11+'MYFF - Outcome 1.1'!I22+'MYFF - Outcome 1.1'!I30 -> 317136 | J14: ='MYFF - Outcome 1.1'!J11+'MYFF - Outcome 1.1'!J22+'MYFF - Outcome 1.1'!J30 -> 252736 | L14: ='MYFF - Outcome 1.1'!L11+'MYFF - Outcome 1.1'!L22+'MYFF - Outcome 1.1'!L30 -> 64400 | M14: ='MYFF - Outcome 1.1'!M11+'MYFF - Outcome 1.1'!M22+'MYFF - Outcome 1.1'!M30 -> 160302 | N14: ='MYFF - Outcome 1.1'!N11+'MYFF - Outcome 1.1'!N22+'MYFF - Outcome 1.1'!N30 -> 124802 | P14: ='MYFF - Outcome 1.1'!P11+'MYFF - Outcome 1.1'!P22+'MYFF - Outcome 1.1'!P30 -> 35500 | Q14: ='MYFF - Outcome 1.1'!Q11+'MYFF - Outcome 1.1'!Q22+'MYFF - Outcome 1.1'!Q30 -> 292864 | R14: ='MYFF - Outcome 1.1'!R11+'MYFF - Outcome 1.1'!R22+'MYFF - Outcome 1.1'!R30 -> 8264 | T14: ='MYFF - Outcome 1.1'!T11+'MYFF - Outcome 1.1'!T22+'MYFF - Outcome 1.1'!T30 -> 284600 | U14: ='MYFF - Outcome 1.1'!U11+'MYFF - Outcome 1.1'!U22+'MYFF - Outcome 1.1'!U30 -> 220000 | V14: ='MYFF - Outcome 1.1'!V11+'MYFF - Outcome 1.1'!V22+'MYFF - Outcome 1.1'!V30 -> 0 | X14: ='MYFF - Outcome 1.1'!X11+'MYFF - Outcome 1.1'!X22+'MYFF - Outcome 1.1'!X30 -> 220000 | Y14: ='MYFF - Outcome 1.1'!Y11+'MYFF - Outcome 1.1'!Y22+'MYFF - Outcome 1.1'!Y30 -> 130000 | Z14: ='MYFF - Outcome 1.1'!Z11+'MYFF - Outcome 1.1'!Z22+'MYFF - Outcome 1.1'!Z30 -> 0 | AB14: ='MYFF - Outcome 1.1'!AB11+'MYFF - Outcome 1.1'!AB22+'MYFF - Outcome 1.1'!AB30 -> 130000
C15: UNWOMEN | D15: 150000 | E15: 0 | H15: 150000 | I15: 30000 | J15: 0 | L15: =I15-J15 -> 30000 | M15: 30000 | N15: 0 | P15: =M15-N15 -> 30000 | Q15: 30000 | R15: 0 | T15: =Q15-R15 -> 30000 | U15: 30000 | V15: 0 | X15: =U15-V15 -> 30000 | Y15: 30000 | Z15: 0 | AB15: =Y15-Z15 -> 30000
C16: WHO | D16: 5613222 | E16: 2331673 | H16: 3281549 | I16: ='MYFF - Outcome 1.1'!I13+'MYFF - Outcome 1.1'!I24+'MYFF - Outcome 1.1'!I32 -> 1182000 | J16: ='MYFF - Outcome 1.1'!J13+'MYFF - Outcome 1.1'!J24+'MYFF - Outcome 1.1'!J32 -> 1182000 | L16: ='MYFF - Outcome 1.1'!L13+'MYFF - Outcome 1.1'!L24+'MYFF - Outcome 1.1'!L32 -> 0 | M16: ='MYFF - Outcome 1.1'!M13+'MYFF - Outcome 1.1'!M24+'MYFF - Outcome 1.1'!M32 -> 1544348 | N16: ='MYFF - Outcome 1.1'!N13+'MYFF - Outcome 1.1'!N24+'MYFF - Outcome 1.1'!N32 -> 1149673 | P16: ='MYFF - Outcome 1.1'!P13+'MYFF - Outcome 1.1'!P24+'MYFF - Outcome 1.1'!P32 -> 394675 | Q16: ='MYFF - Outcome 1.1'!Q13+'MYFF - Outcome 1.1'!Q24+'MYFF - Outcome 1.1'!Q32 -> 1501874 | R16: ='MYFF - Outcome 1.1'!R13+'MYFF - Outcome 1.1'!R24+'MYFF - Outcome 1.1'!R32 -> 0 | T16: ='MYFF - Outcome 1.1'!T13+'MYFF - Outcome 1.1'!T24+'MYFF - Outcome 1.1'!T32 -> 1501874 | U16: ='MYFF - Outcome 1.1'!U13+'MYFF - Outcome 1.1'!U24+'MYFF - Outcome 1.1'!U32 -> 1010000 | V16: ='MYFF - Outcome 1.1'!V13+'MYFF - Outcome 1.1'!V24+'MYFF - Outcome 1.1'!V32 -> 0 | X16: ='MYFF - Outcome 1.1'!X13+'MYFF - Outcome 1.1'!X24+'MYFF - Outcome 1.1'!X32 -> 1010000 | Y16: ='MYFF - Outcome 1.1'!Y13+'MYFF - Outcome 1.1'!Y24+'MYFF - Outcome 1.1'!Y32 -> 375000 | Z16: ='MYFF - Outcome 1.1'!Z13+'MYFF - Outcome 1.1'!Z24+'MYFF - Outcome 1.1'!Z32 -> 0 | AB16: ='MYFF - Outcome 1.1'!AB13+'MYFF - Outcome 1.1'!AB24+'MYFF - Outcome 1.1'!AB32 -> 375000
C17: Total | D17: =SUM(D6:D16) -> 18031952 | E17: =SUM(E6:E16) -> 8612467 | H17: =SUM(H6:H16) -> 9419485 | I17: =SUM(I6:I16) -> 4496097 | J17: =SUM(J6:J16) -> 4259697 | L17: =SUM(L6:L16) -> 236400 | M17: =SUM(M6:M16) -> 4126557 | N17: =SUM(N6:N16) -> 3452882 | P17: =SUM(P6:P16) -> 673675 | Q17: =SUM(Q6:Q16) -> 4660212 | R17: =SUM(R6:R16) -> 640538 | T17: =SUM(T6:T16) -> 4019674 | U17: =SUM(U6:U16) -> 3000000 | V17: =SUM(V6:V16) -> 210000 | X17: =SUM(X6:X16) -> 2790000 | Y17: =SUM(Y6:Y16) -> 1749086 | Z17: =SUM(Z6:Z16) -> 49350 | AB17: =SUM(AB6:AB16) -> 1699736
A18: Outcome 2.1: By 2027, a more sustainable, inclusive, diversified and integrated economy generates decent jobs, food security and nutrition for the most vulnerable, especially women, youth and the extreme poor | B18: =D28 -> 28421698.87 | C18: FAO | D18: =SUM(I18+M18+Q18+U18+Y18) -> 7436808 | E18: 3168103 | H18: =D18-E18 -> 4268705 | I18: ='MYFF - Outcome 2.1'!I6+'MYFF - Outcome 2.1'!I15+'MYFF - Outcome 2.1'!I21 -> 1449500 | J18: ='MYFF - Outcome 2.1'!J6+'MYFF - Outcome 2.1'!J15+'MYFF - Outcome 2.1'!J21 -> 1410914 | L18: ='MYFF - Outcome 2.1'!L6+'MYFF - Outcome 2.1'!L15+'MYFF - Outcome 2.1'!L21 -> 38586 | M18: ='MYFF - Outcome 2.1'!M6+'MYFF - Outcome 2.1'!M15+'MYFF - Outcome 2.1'!M21 -> 1757189 | N18: ='MYFF - Outcome 2.1'!N6+'MYFF - Outcome 2.1'!N15+'MYFF - Outcome 2.1'!N21 -> 1757189 | P18: ='MYFF - Outcome 2.1'!P6+'MYFF - Outcome 2.1'!P15+'MYFF - Outcome 2.1'!P21 -> 0 | Q18: ='MYFF - Outcome 2.1'!Q6+'MYFF - Outcome 2.1'!Q15+'MYFF - Outcome 2.1'!Q21 -> 1580119 | R18: ='MYFF - Outcome 2.1'!R6+'MYFF - Outcome 2.1'!R15+'MYFF - Outcome 2.1'!R21 -> 0 | T18: ='MYFF - Outcome 2.1'!T6+'MYFF - Outcome 2.1'!T15+'MYFF - Outcome 2.1'!T21 -> 1580119 | U18: ='MYFF - Outcome 2.1'!U6+'MYFF - Outcome 2.1'!U15+'MYFF - Outcome 2.1'!U21 -> 1450000 | V18: ='MYFF - Outcome 2.1'!V6+'MYFF - Outcome 2.1'!V15+'MYFF - Outcome 2.1'!V21 -> 0 | X18: ='MYFF - Outcome 2.1'!X6+'MYFF - Outcome 2.1'!X15+'MYFF - Outcome 2.1'!X21 -> 1450000 | Y18: ='MYFF - Outcome 2.1'!Y6+'MYFF - Outcome 2.1'!Y15+'MYFF - Outcome 2.1'!Y21 -> 1200000 | Z18: ='MYFF - Outcome 2.1'!Z6+'MYFF - Outcome 2.1'!Z15+'MYFF - Outcome 2.1'!Z21 -> 0 | AB18: ='MYFF - Outcome 2.1'!AB6+'MYFF - Outcome 2.1'!AB15+'MYFF - Outcome 2.1'!AB21 -> 1200000
C19: ILO | D19: 2741475 | E19: 2270689 | H19: 470786 | I19: ='MYFF - Outcome 2.1'!I7 -> 374451 | J19: ='MYFF - Outcome 2.1'!J7 -> 354451 | K19: ='MYFF - Outcome 2.1'!K7 -> Luxem bourg, Joint SDG, Finland | L19: ='MYFF - Outcome 2.1'!L7 -> 20000 | M19: ='MYFF - Outcome 2.1'!M7 -> 757024 | N19: ='MYFF - Outcome 2.1'!N7 -> 636238 | O19: ='MYFF - Outcome 2.1'!O7 -> Luxembourg, Finland | P19: ='MYFF - Outcome 2.1'!P7 -> 120786 | Q19: ='MYFF - Outcome 2.1'!Q7 -> 750000 | R19: ='MYFF - Outcome 2.1'!R7 -> 640000 | T19: ='MYFF - Outcome 2.1'!T7 -> 110000 | U19: ='MYFF - Outcome 2.1'!U7 -> 750000 | V19: ='MYFF - Outcome 2.1'!V7 -> 640000 | X19: ='MYFF - Outcome 2.1'!X7 -> 110000 | Y19: ='MYFF - Outcome 2.1'!Y7 -> 110000 | Z19: ='MYFF - Outcome 2.1'!Z7 -> 0 | AB19: ='MYFF - Outcome 2.1'!AB7 -> 110000
C20: IOM | D20: 7505537 | E20: 612215 | H20: 6893322 | I20: ='MYFF - Outcome 2.1'!I8+'MYFF - Outcome 2.1'!I24 -> 275940 | J20: ='MYFF - Outcome 2.1'!J8+'MYFF - Outcome 2.1'!J24 -> 275940 | L20: ='MYFF - Outcome 2.1'!L8+'MYFF - Outcome 2.1'!L24 -> 0 | M20: ='MYFF - Outcome 2.1'!M8+'MYFF - Outcome 2.1'!M24 -> 336275 | N20: ='MYFF - Outcome 2.1'!N8+'MYFF - Outcome 2.1'!N24 -> 336275 | P20: ='MYFF - Outcome 2.1'!P8+'MYFF - Outcome 2.1'!P24 -> 0 | Q20: ='MYFF - Outcome 2.1'!Q8+'MYFF - Outcome 2.1'!Q24 -> 2493322 | R20: ='MYFF - Outcome 2.1'!R8+'MYFF - Outcome 2.1'!R24 -> 0 | T20: ='MYFF - Outcome 2.1'!T8+'MYFF - Outcome 2.1'!T24 -> 2493322 | U20: ='MYFF - Outcome 2.1'!U8+'MYFF - Outcome 2.1'!U24 -> 2300000 | V20: ='MYFF - Outcome 2.1'!V8+'MYFF - Outcome 2.1'!V24 -> 0 | X20: ='MYFF - Outcome 2.1'!X8+'MYFF - Outcome 2.1'!X24 -> 2300000 | Y20: ='MYFF - Outcome 2.1'!Y8+'MYFF - Outcome 2.1'!Y24 -> 2100000 | Z20: ='MYFF - Outcome 2.1'!Z8+'MYFF - Outcome 2.1'!Z24 -> 0 | AB20: ='MYFF - Outcome 2.1'!AB8+'MYFF - Outcome 2.1'!AB24 -> 2100000
C21: ITU | D21: 15000 | E21: 10000 | H21: 5000 | I21: ='MYFF - Outcome 2.1'!I9 -> 15000 | J21: ='MYFF - Outcome 2.1'!J9 -> 10000 | K21: ='MYFF - Outcome 2.1'!K9 -> core funds | L21: ='MYFF - Outcome 2.1'!L9 -> 5000 | M21: ='MYFF - Outcome 2.1'!M9 -> 0 | N21: ='MYFF - Outcome 2.1'!N9 -> 0 | P21: ='MYFF - Outcome 2.1'!P9 -> 0 | Q21: ='MYFF - Outcome 2.1'!Q9 -> 0 | R21: ='MYFF - Outcome 2.1'!R9 -> 0 | T21: ='MYFF - Outcome 2.1'!T9 -> 0 | U21: ='MYFF - Outcome 2.1'!U9 -> 0 | V21: ='MYFF - Outcome 2.1'!V9 -> 0 | X21: ='MYFF - Outcome 2.1'!X9 -> 0 | Y21: ='MYFF - Outcome 2.1'!Y9 -> 0 | Z21: ='MYFF - Outcome 2.1'!Z9 -> 0 | AB21: ='MYFF - Outcome 2.1'!AB9 -> 0
C22: UNDP | D22: 3017850 | E22: 2221000 | H22: 796850 | I22: ='MYFF - Outcome 2.1'!I10+'MYFF - Outcome 2.1'!I16+'MYFF - Outcome 2.1'!I25 -> 847850 | J22: ='MYFF - Outcome 2.1'!J10+'MYFF - Outcome 2.1'!J16+'MYFF - Outcome 2.1'!J25 -> 701000 | L22: ='MYFF - Outcome 2.1'!L10+'MYFF - Outcome 2.1'!L16+'MYFF - Outcome 2.1'!L25 -> 146850 | M22: ='MYFF - Outcome 2.1'!M10+'MYFF - Outcome 2.1'!M16+'MYFF - Outcome 2.1'!M25 -> 545000 | N22: ='MYFF - Outcome 2.1'!N10+'MYFF - Outcome 2.1'!N16+'MYFF - Outcome 2.1'!N25 -> 520000 | P22: ='MYFF - Outcome 2.1'!P10+'MYFF - Outcome 2.1'!P16+'MYFF - Outcome 2.1'!P25 -> 25000 | Q22: ='MYFF - Outcome 2.1'!Q10+'MYFF - Outcome 2.1'!Q16+'MYFF - Outcome 2.1'!Q25 -> 675000 | R22: ='MYFF - Outcome 2.1'!R10+'MYFF - Outcome 2.1'!R16+'MYFF - Outcome 2.1'!R25 -> 500000 | T22: ='MYFF - Outcome 2.1'!T10+'MYFF - Outcome 2.1'!T16+'MYFF - Outcome 2.1'!T25 -> 175000 | U22: ='MYFF - Outcome 2.1'!U10+'MYFF - Outcome 2.1'!U16+'MYFF - Outcome 2.1'!U25 -> 550000 | V22: ='MYFF - Outcome 2.1'!V10+'MYFF - Outcome 2.1'!V16+'MYFF - Outcome 2.1'!V25 -> 500000 | X22: ='MYFF - Outcome 2.1'!X10+'MYFF - Outcome 2.1'!X16+'MYFF - Outcome 2.1'!X25 -> 50000 | Y22: ='MYFF - Outcome 2.1'!Y10+'MYFF - Outcome 2.1'!Y16+'MYFF - Outcome 2.1'!Y25 -> 400000 | Z22: ='MYFF - Outcome 2.1'!Z10+'MYFF - Outcome 2.1'!Z16+'MYFF - Outcome 2.1'!Z25 -> 0 | AB22: ='MYFF - Outcome 2.1'!AB10+'MYFF - Outcome 2.1'!AB16+'MYFF - Outcome 2.1'!AB25 -> 400000
C23: UNECA | D23: 155000 | E23: 129000 | H23: 26000 | I23: ='MYFF - Outcome 2.1'!I11 -> 58000 | J23: ='MYFF - Outcome 2.1'!J11 -> 32000 | K23: ='MYFF - Outcome 2.1'!K11 -> core funds | L23: ='MYFF - Outcome 2.1'!L11 -> 26000 | M23: ='MYFF - Outcome 2.1'!M11 -> 97000 | N23: ='MYFF - Outcome 2.1'!N11 -> 97000 | O23: ='MYFF - Outcome 2.1'!O11 -> core funds | P23: ='MYFF - Outcome 2.1'!P11 -> 0 | Q23: ='MYFF - Outcome 2.1'!Q11 -> 0 | R23: ='MYFF - Outcome 2.1'!R11 -> 0 | T23: ='MYFF - Outcome 2.1'!T11 -> 0 | U23: ='MYFF - Outcome 2.1'!U11 -> 0 | V23: ='MYFF - Outcome 2.1'!V11 -> 0 | X23: ='MYFF - Outcome 2.1'!X11 -> 0 | Y23: ='MYFF - Outcome 2.1'!Y11 -> 0 | Z23: ='MYFF - Outcome 2.1'!Z11 -> 0 | AB23: ='MYFF - Outcome 2.1'!AB11 -> 0
C24: UNESCO | D24: 125600 | E24: 125600 | H24: 0 | I24: ='MYFF - Outcome 2.1'!I17 -> 100000 | J24: ='MYFF - Outcome 2.1'!J17 -> 100000 | K24: ='MYFF - Outcome 2.1'!K17 -> core funds | L24: ='MYFF - Outcome 2.1'!L17 -> 0 | M24: ='MYFF - Outcome 2.1'!M17 -> 25600 | N24: ='MYFF - Outcome 2.1'!N17 -> 25600 | O24: ='MYFF - Outcome 2.1'!O17 -> core funds | P24: ='MYFF - Outcome 2.1'!P17 -> 0 | Q24: ='MYFF - Outcome 2.1'!Q17 -> 0 | R24: ='MYFF - Outcome 2.1'!R17 -> 0 | T24: ='MYFF - Outcome 2.1'!T17 -> 0 | U24: ='MYFF - Outcome 2.1'!U17 -> 0 | V24: ='MYFF - Outcome 2.1'!V17 -> 0 | X24: ='MYFF - Outcome 2.1'!X17 -> 0 | Y24: ='MYFF - Outcome 2.1'!Y17 -> 0 | Z24: ='MYFF - Outcome 2.1'!Z17 -> 0 | AB24: ='MYFF - Outcome 2.1'!AB17 -> 0
C25: UNIDO | D25: 6082712.867 | E25: 192163 | H25: 5890549.867 | I25: ='MYFF - Outcome 2.1'!I12+'MYFF - Outcome 2.1'!I18+'MYFF - Outcome 2.1'!I26 -> 91477 | J25: ='MYFF - Outcome 2.1'!J12+'MYFF - Outcome 2.1'!J18+'MYFF - Outcome 2.1'!J26 -> 91477 | L25: ='MYFF - Outcome 2.1'!L12+'MYFF - Outcome 2.1'!L18+'MYFF - Outcome 2.1'!L26 -> 0 | M25: ='MYFF - Outcome 2.1'!M12+'MYFF - Outcome 2.1'!M18+'MYFF - Outcome 2.1'!M26 -> 600686 | N25: ='MYFF - Outcome 2.1'!N12+'MYFF - Outcome 2.1'!N18+'MYFF - Outcome 2.1'!N26 -> 100686 | P25: ='MYFF - Outcome 2.1'!P12+'MYFF - Outcome 2.1'!P18+'MYFF - Outcome 2.1'!P26 -> 500000 | Q25: ='MYFF - Outcome 2.1'!Q12+'MYFF - Outcome 2.1'!Q18+'MYFF - Outcome 2.1'!Q26 -> 2472774.934 | R25: ='MYFF - Outcome 2.1'!R12+'MYFF - Outcome 2.1'!R18+'MYFF - Outcome 2.1'!R26 -> 0 | T25: ='MYFF - Outcome 2.1'!T12+'MYFF - Outcome 2.1'!T18+'MYFF - Outcome 2.1'!T26 -> 2472774.934 | U25: ='MYFF - Outcome 2.1'!U12+'MYFF - Outcome 2.1'!U18+'MYFF - Outcome 2.1'!U26 -> 1486387.467 | V25: ='MYFF - Outcome 2.1'!V12+'MYFF - Outcome 2.1'!V18+'MYFF - Outcome 2.1'!V26 -> 0 | X25: ='MYFF - Outcome 2.1'!X12+'MYFF - Outcome 2.1'!X18+'MYFF - Outcome 2.1'!X26 -> 1486387.467 | Y25: ='MYFF - Outcome 2.1'!Y12+'MYFF - Outcome 2.1'!Y18+'MYFF - Outcome 2.1'!Y26 -> 1431387.467 | Z25: ='MYFF - Outcome 2.1'!Z12+'MYFF - Outcome 2.1'!Z18+'MYFF - Outcome 2.1'!Z26 -> 0 | AB25: ='MYFF - Outcome 2.1'!AB12+'MYFF - Outcome 2.1'!AB18+'MYFF - Outcome 2.1'!AB26 -> 1431387.467
C26: WFP | D26: =SUM(I26+M26+Q26+U26+Y26) -> 990000 | E26: =SUM(J26+N26+R26+V26+Z26) -> 990000 | H26: =D26-E26 -> 0 | I26: ='MYFF - Outcome 2.1'!I22 -> 990000 | J26: ='MYFF - Outcome 2.1'!J22 -> 990000 | K26: ='MYFF - Outcome 2.1'!K22 -> ECOWAS, Japan | L26: ='MYFF - Outcome 2.1'!L22 -> 0 | M26: ='MYFF - Outcome 2.1'!M22 -> 0 | N26: ='MYFF - Outcome 2.1'!N22 -> 0 | P26: ='MYFF - Outcome 2.1'!P22 -> 0 | Q26: ='MYFF - Outcome 2.1'!Q22 -> 0 | R26: ='MYFF - Outcome 2.1'!R22 -> 0 | T26: ='MYFF - Outcome 2.1'!T22 -> 0 | U26: ='MYFF - Outcome 2.1'!U22 -> 0 | V26: ='MYFF - Outcome 2.1'!V22 -> 0 | X26: ='MYFF - Outcome 2.1'!X22 -> 0 | Y26: ='MYFF - Outcome 2.1'!Y22 -> 0 | Z26: ='MYFF - Outcome 2.1'!Z22 -> 0 | AB26: ='MYFF - Outcome 2.1'!AB22 -> 0
C27: WIPO | D27: 351716 | E27: 351716 | H27: 0 | I27: ='MYFF - Outcome 2.1'!I13+'MYFF - Outcome 2.1'!I19+'MYFF - Outcome 2.1'!I27 -> 112137 | J27: ='MYFF - Outcome 2.1'!J13+'MYFF - Outcome 2.1'!J19+'MYFF - Outcome 2.1'!J27 -> 112137 | L27: ='MYFF - Outcome 2.1'!L13+'MYFF - Outcome 2.1'!L19+'MYFF - Outcome 2.1'!L27 -> 0 | M27: ='MYFF - Outcome 2.1'!M13+'MYFF - Outcome 2.1'!M19+'MYFF - Outcome 2.1'!M27 -> 107159 | N27: ='MYFF - Outcome 2.1'!N13+'MYFF - Outcome 2.1'!N19+'MYFF - Outcome 2.1'!N27 -> 107159 | P27: ='MYFF - Outcome 2.1'!P13+'MYFF - Outcome 2.1'!P19+'MYFF - Outcome 2.1'!P27 -> 0 | Q27: ='MYFF - Outcome 2.1'!Q13+'MYFF - Outcome 2.1'!Q19+'MYFF - Outcome 2.1'!Q27 -> 132420 | R27: ='MYFF - Outcome 2.1'!R13+'MYFF - Outcome 2.1'!R19+'MYFF - Outcome 2.1'!R27 -> 132420 | T27: ='MYFF - Outcome 2.1'!T13+'MYFF - Outcome 2.1'!T19+'MYFF - Outcome 2.1'!T27 -> 0 | U27: ='MYFF - Outcome 2.1'!U13+'MYFF - Outcome 2.1'!U19+'MYFF - Outcome 2.1'!U27 -> 0 | V27: ='MYFF - Outcome 2.1'!V13+'MYFF - Outcome 2.1'!V19+'MYFF - Outcome 2.1'!V27 -> 0 | X27: ='MYFF - Outcome 2.1'!X13+'MYFF - Outcome 2.1'!X19+'MYFF - Outcome 2.1'!X27 -> 0 | Y27: ='MYFF - Outcome 2.1'!Y13+'MYFF - Outcome 2.1'!Y19+'MYFF - Outcome 2.1'!Y27 -> 0 | Z27: ='MYFF - Outcome 2.1'!Z13+'MYFF - Outcome 2.1'!Z19+'MYFF - Outcome 2.1'!Z27 -> 0 | AB27: ='MYFF - Outcome 2.1'!AB13+'MYFF - Outcome 2.1'!AB19+'MYFF - Outcome 2.1'!AB27 -> 0
C28: Total | D28: =SUM(D18:D27) -> 28421698.87 | E28: =SUM(E18:E27) -> 10070486 | H28: =SUM(H18:H27) -> 18351212.87 | I28: =SUM(I18:I27) -> 4314355 | J28: =SUM(J18:J27) -> 4077919 | L28: =SUM(L18:L27) -> 236436 | M28: =SUM(M18:M27) -> 4225933 | N28: =SUM(N18:N27) -> 3580147 | P28: =SUM(P18:P27) -> 645786 | Q28: =SUM(Q18:Q27) -> 8103635.934 | R28: =SUM(R18:R27) -> 1272420 | T28: =SUM(T18:T27) -> 6831215.934 | U28: =SUM(U18:U27) -> 6536387.467 | V28: =SUM(V18:V27) -> 1140000 | X28: =SUM(X18:X27) -> 5396387.467 | Y28: =SUM(Y18:Y27) -> 5241387.467 | Z28: =SUM(Z18:Z27) -> 0 | AB28: =SUM(AB18:AB27) -> 5241387.467
A29: Outcome 2.2: By 2027, key marine and land ecosystems and biodiversity are better protected, restored, and more sustainably managed and the resilience to shocks and climate change impacts are improved and gender responsive. | B29: =D35 -> 42325148.6 | C29: FAO | D29: =SUM(I29+M29+Q29+U29+Y29) -> 20978709 | E29: 15978709 | H29: =D29-E29 -> 5000000 | I29: ='MYFF - Outcome 2.2'!I6+'MYFF - Outcome 2.2'!I11+'MYFF - Outcome 2.2'!I19 -> 708709 | J29: ='MYFF - Outcome 2.2'!J6+'MYFF - Outcome 2.2'!J11+'MYFF - Outcome 2.2'!J19 -> 708709 | L29: ='MYFF - Outcome 2.2'!L6+'MYFF - Outcome 2.2'!L11+'MYFF - Outcome 2.2'!L19 -> 0 | M29: ='MYFF - Outcome 2.2'!M6+'MYFF - Outcome 2.2'!M11+'MYFF - Outcome 2.2'!M19 -> 670000 | N29: ='MYFF - Outcome 2.2'!N6+'MYFF - Outcome 2.2'!N11+'MYFF - Outcome 2.2'!N19 -> 670000 | P29: ='MYFF - Outcome 2.2'!P6+'MYFF - Outcome 2.2'!P11+'MYFF - Outcome 2.2'!P19 -> 0 | Q29: ='MYFF - Outcome 2.2'!Q6+'MYFF - Outcome 2.2'!Q11+'MYFF - Outcome 2.2'!Q19 -> 7600000 | R29: ='MYFF - Outcome 2.2'!R6+'MYFF - Outcome 2.2'!R11+'MYFF - Outcome 2.2'!R19 -> 4600000 | T29: ='MYFF - Outcome 2.2'!T6+'MYFF - Outcome 2.2'!T11+'MYFF - Outcome 2.2'!T19 -> 3000000 | U29: ='MYFF - Outcome 2.2'!U6+'MYFF - Outcome 2.2'!U11+'MYFF - Outcome 2.2'!U19 -> 6000000 | V29: ='MYFF - Outcome 2.2'!V6+'MYFF - Outcome 2.2'!V11+'MYFF - Outcome 2.2'!V19 -> 5000000 | X29: ='MYFF - Outcome 2.2'!X6+'MYFF - Outcome 2.2'!X11+'MYFF - Outcome 2.2'!X19 -> 1000000 | Y29: ='MYFF - Outcome 2.2'!Y6+'MYFF - Outcome 2.2'!Y11+'MYFF - Outcome 2.2'!Y19 -> 6000000 | Z29: ='MYFF - Outcome 2.2'!Z6+'MYFF - Outcome 2.2'!Z11+'MYFF - Outcome 2.2'!Z19 -> 5000000 | AB29: ='MYFF - Outcome 2.2'!AB6+'MYFF - Outcome 2.2'!AB11+'MYFF - Outcome 2.2'!AB19 -> 1000000
C30: UNDP | D30: 13049806 | E30: 3590806 | H30: 9459000 | I30: ='MYFF - Outcome 2.2'!I8+'MYFF - Outcome 2.2'!I12+'MYFF - Outcome 2.2'!I20 -> 1713017 | J30: ='MYFF - Outcome 2.2'!J8+'MYFF - Outcome 2.2'!J12+'MYFF - Outcome 2.2'!J20 -> 1713017 | L30: ='MYFF - Outcome 2.2'!L8+'MYFF - Outcome 2.2'!L12+'MYFF - Outcome 2.2'!L20 -> 0 | M30: ='MYFF - Outcome 2.2'!M8+'MYFF - Outcome 2.2'!M12+'MYFF - Outcome 2.2'!M20 -> 1877789 | N30: ='MYFF - Outcome 2.2'!N8+'MYFF - Outcome 2.2'!N12+'MYFF - Outcome 2.2'!N20 -> 1877789 | P30: ='MYFF - Outcome 2.2'!P8+'MYFF - Outcome 2.2'!P12+'MYFF - Outcome 2.2'!P20 -> 0 | Q30: ='MYFF - Outcome 2.2'!Q8+'MYFF - Outcome 2.2'!Q12+'MYFF - Outcome 2.2'!Q20 -> 3759000 | R30: ='MYFF - Outcome 2.2'!R8+'MYFF - Outcome 2.2'!R12+'MYFF - Outcome 2.2'!R20 -> 0 | T30: ='MYFF - Outcome 2.2'!T8+'MYFF - Outcome 2.2'!T12+'MYFF - Outcome 2.2'!T20 -> 3759000 | U30: ='MYFF - Outcome 2.2'!U8+'MYFF - Outcome 2.2'!U12+'MYFF - Outcome 2.2'!U20 -> 2900000 | V30: ='MYFF - Outcome 2.2'!V8+'MYFF - Outcome 2.2'!V12+'MYFF - Outcome 2.2'!V20 -> 0 | X30: ='MYFF - Outcome 2.2'!X8+'MYFF - Outcome 2.2'!X12+'MYFF - Outcome 2.2'!X20 -> 2900000 | Y30: ='MYFF - Outcome 2.2'!Y8+'MYFF - Outcome 2.2'!Y12+'MYFF - Outcome 2.2'!Y20 -> 2800000 | Z30: ='MYFF - Outcome 2.2'!Z8+'MYFF - Outcome 2.2'!Z12+'MYFF - Outcome 2.2'!Z20 -> 0 | AB30: ='MYFF - Outcome 2.2'!AB8+'MYFF - Outcome 2.2'!AB12+'MYFF - Outcome 2.2'!AB20 -> 2800000
C31: UNEP | D31: 619782 | E31: 328422 | H31: 291360 | I31: ='MYFF - Outcome 2.2'!I13 -> 180000 | J31: ='MYFF - Outcome 2.2'!J13 -> 124000 | K31: ='MYFF - Outcome 2.2'!K13 -> Montreal Protocol | L31: ='MYFF - Outcome 2.2'!L13 -> 56000 | M31: ='MYFF - Outcome 2.2'!M13 -> 430600 | N31: ='MYFF - Outcome 2.2'!N13 -> 204422 | O31: ='MYFF - Outcome 2.2'!O13 -> Montreal Protocol, GEF, SOFF | P31: ='MYFF - Outcome 2.2'!P13 -> 226178 | Q31: ='MYFF - Outcome 2.2'!Q13 -> 9182 | R31: ='MYFF - Outcome 2.2'!R13 -> 0 | T31: ='MYFF - Outcome 2.2'!T13 -> 9182 | U31: ='MYFF - Outcome 2.2'!U13 -> 0 | V31: ='MYFF - Outcome 2.2'!V13 -> 0 | X31: ='MYFF - Outcome 2.2'!X13 -> 0 | Y31: ='MYFF - Outcome 2.2'!Y13 -> 0 | Z31: ='MYFF - Outcome 2.2'!Z13 -> 0 | AB31: ='MYFF - Outcome 2.2'!AB13 -> 0
C32: UNESCO | D32: 598000 | E32: 196025 | H32: 401975 | I32: ='MYFF - Outcome 2.2'!I9+'MYFF - Outcome 2.2'!I16+'MYFF - Outcome 2.2'!I21 -> 143000 | J32: ='MYFF - Outcome 2.2'!J9+'MYFF - Outcome 2.2'!J16+'MYFF - Outcome 2.2'!J21 -> 143000 | L32: ='MYFF - Outcome 2.2'!L9+'MYFF - Outcome 2.2'!L16+'MYFF - Outcome 2.2'!L21 -> 0 | M32: ='MYFF - Outcome 2.2'!M9+'MYFF - Outcome 2.2'!M16+'MYFF - Outcome 2.2'!M21 -> 94000 | N32: ='MYFF - Outcome 2.2'!N9+'MYFF - Outcome 2.2'!N16+'MYFF - Outcome 2.2'!N21 -> 53025 | P32: ='MYFF - Outcome 2.2'!P9+'MYFF - Outcome 2.2'!P16+'MYFF - Outcome 2.2'!P21 -> 40975 | Q32: ='MYFF - Outcome 2.2'!Q9+'MYFF - Outcome 2.2'!Q16+'MYFF - Outcome 2.2'!Q21 -> 121000 | R32: ='MYFF - Outcome 2.2'!R9+'MYFF - Outcome 2.2'!R16+'MYFF - Outcome 2.2'!R21 -> 0 | T32: ='MYFF - Outcome 2.2'!T9+'MYFF - Outcome 2.2'!T16+'MYFF - Outcome 2.2'!T21 -> 121000 | U32: ='MYFF - Outcome 2.2'!U9+'MYFF - Outcome 2.2'!U16+'MYFF - Outcome 2.2'!U21 -> 120000 | V32: ='MYFF - Outcome 2.2'!V9+'MYFF - Outcome 2.2'!V16+'MYFF - Outcome 2.2'!V21 -> 0 | X32: ='MYFF - Outcome 2.2'!X9+'MYFF - Outcome 2.2'!X16+'MYFF - Outcome 2.2'!X21 -> 120000 | Y32: ='MYFF - Outcome 2.2'!Y9+'MYFF - Outcome 2.2'!Y16+'MYFF - Outcome 2.2'!Y21 -> 120000 | Z32: ='MYFF - Outcome 2.2'!Z9+'MYFF - Outcome 2.2'!Z16+'MYFF - Outcome 2.2'!Z21 -> 0 | AB32: ='MYFF - Outcome 2.2'!AB9+'MYFF - Outcome 2.2'!AB16+'MYFF - Outcome 2.2'!AB21 -> 120000
C33: UNHABITAT | D33: 100000 | E33: 0 | H33: 100000 | I33: ='MYFF - Outcome 2.2'!I7 -> 0 | J33: ='MYFF - Outcome 2.2'!J7 -> 0 | L33: ='MYFF - Outcome 2.2'!L7 -> 0 | M33: ='MYFF - Outcome 2.2'!M7 -> 0 | N33: ='MYFF - Outcome 2.2'!N7 -> 0 | P33: ='MYFF - Outcome 2.2'!P7 -> 0 | Q33: ='MYFF - Outcome 2.2'!Q7 -> 50000 | R33: ='MYFF - Outcome 2.2'!R7 -> 0 | T33: ='MYFF - Outcome 2.2'!T7 -> 50000 | U33: ='MYFF - Outcome 2.2'!U7 -> 50000 | V33: ='MYFF - Outcome 2.2'!V7 -> 0 | X33: ='MYFF - Outcome 2.2'!X7 -> 50000 | Y33: ='MYFF - Outcome 2.2'!Y7 -> 0 | Z33: ='MYFF - Outcome 2.2'!Z7 -> 0 | AB33: ='MYFF - Outcome 2.2'!AB7 -> 0
C34: UNIDO | D34: 6978851.6 | E34: 2064431 | H34: 4914420.6 | I34: ='MYFF - Outcome 2.2'!I14+'MYFF - Outcome 2.2'!I17 -> 415603 | J34: ='MYFF - Outcome 2.2'!J14+'MYFF - Outcome 2.2'!J17 -> 415603 | L34: ='MYFF - Outcome 2.2'!L14+'MYFF - Outcome 2.2'!L17 -> 0 | M34: ='MYFF - Outcome 2.2'!M14+'MYFF - Outcome 2.2'!M17 -> 1148828 | N34: ='MYFF - Outcome 2.2'!N14+'MYFF - Outcome 2.2'!N17 -> 1148828 | P34: ='MYFF - Outcome 2.2'!P14+'MYFF - Outcome 2.2'!P17 -> 0 | Q34: ='MYFF - Outcome 2.2'!Q14+'MYFF - Outcome 2.2'!Q17 -> 2138140.2 | R34: ='MYFF - Outcome 2.2'!R14+'MYFF - Outcome 2.2'!R17 -> 500000 | T34: ='MYFF - Outcome 2.2'!T14+'MYFF - Outcome 2.2'!T17 -> 1638140.2 | U34: ='MYFF - Outcome 2.2'!U14+'MYFF - Outcome 2.2'!U17 -> 1638140.2 | V34: ='MYFF - Outcome 2.2'!V14+'MYFF - Outcome 2.2'!V17 -> 0 | X34: ='MYFF - Outcome 2.2'!X14+'MYFF - Outcome 2.2'!X17 -> 1638140.2 | Y34: ='MYFF - Outcome 2.2'!Y14+'MYFF - Outcome 2.2'!Y17 -> 1638140.2 | Z34: ='MYFF - Outcome 2.2'!Z14+'MYFF - Outcome 2.2'!Z17 -> 0 | AB34: ='MYFF - Outcome 2.2'!AB14+'MYFF - Outcome 2.2'!AB17 -> 1638140.2
C35: Total | D35: =SUM(D29:D34) -> 42325148.6 | E35: =SUM(E29:E34) -> 22158393 | H35: =SUM(H29:H34) -> 20166755.6 | I35: =SUM(I29:I34) -> 3160329 | J35: =SUM(J29:J34) -> 3104329 | L35: =SUM(L29:L34) -> 56000 | M35: =SUM(M29:M34) -> 4221217 | N35: =SUM(N29:N34) -> 3954064 | P35: =SUM(P29:P34) -> 267153 | Q35: =SUM(Q29:Q34) -> 13677322.2 | R35: =SUM(R29:R34) -> 5100000 | T35: =SUM(T29:T34) -> 8577322.2 | U35: =SUM(U29:U34) -> 10708140.2 | V35: =SUM(V29:V34) -> 5000000 | X35: =SUM(X29:X34) -> 5708140.2 | Y35: =SUM(Y29:Y34) -> 10558140.2 | Z35: =SUM(Z29:Z34) -> 5000000 | AB35: =SUM(AB29:AB34) -> 5558140.2
A36: Outcome 3.1: By 2027, more people, especially women, youth and those in vulnerable groups, freely exercise their rights, participate in, and benefit from, inclusive, resilient, transparent, and accountable institutions and a more modernized, transformative and effective system of democratic governance that upholds the rule of law, at national and local levels. | B36: =D49 -> 27517577.02 | C36: FAO | D36: =SUM(I36+M36+Q36+U36+Y36) -> 1699477 | E36: 436477 | H36: =D36-E36 -> 1263000 | I36: ='MYFF - Outcome 3.1'!I17 -> 315307 | J36: ='MYFF - Outcome 3.1'!J17 -> 315307 | K36: ='MYFF - Outcome 3.1'!K17 -> GEF | L36: ='MYFF - Outcome 3.1'!L17 -> 0 | M36: ='MYFF - Outcome 3.1'!M17 -> 121170 | N36: ='MYFF - Outcome 3.1'!N17 -> 121170 | O36: ='MYFF - Outcome 3.1'!O17 -> GEF | P36: ='MYFF - Outcome 3.1'!P17 -> 0 | Q36: ='MYFF - Outcome 3.1'!Q17 -> 463000 | R36: ='MYFF - Outcome 3.1'!R17 -> 0 | T36: ='MYFF - Outcome 3.1'!T17 -> 463000 | U36: ='MYFF - Outcome 3.1'!U17 -> 400000 | V36: ='MYFF - Outcome 3.1'!V17 -> 0 | X36: ='MYFF - Outcome 3.1'!X17 -> 400000 | Y36: ='MYFF - Outcome 3.1'!Y17 -> 400000 | Z36: ='MYFF - Outcome 3.1'!Z17 -> 0 | AB36: ='MYFF - Outcome 3.1'!AB17 -> 400000
C37: ILO | D37: 515509 | E37: 234197 | H37: 281312 | I37: ='MYFF - Outcome 3.1'!I9 -> 176731 | J37: ='MYFF - Outcome 3.1'!J9 -> 136731 | K37: ='MYFF - Outcome 3.1'!K9 -> Finland | L37: ='MYFF - Outcome 3.1'!L9 -> 40000 | M37: ='MYFF - Outcome 3.1'!M9 -> 120778 | N37: ='MYFF - Outcome 3.1'!N9 -> 97466 | O37: ='MYFF - Outcome 3.1'!O9 -> Finland | P37: ='MYFF - Outcome 3.1'!P9 -> 23312 | Q37: ='MYFF - Outcome 3.1'!Q9 -> 88000 | R37: ='MYFF - Outcome 3.1'!R9 -> 0 | T37: ='MYFF - Outcome 3.1'!T9 -> 88000 | U37: ='MYFF - Outcome 3.1'!U9 -> 70000 | V37: ='MYFF - Outcome 3.1'!V9 -> 0 | X37: ='MYFF - Outcome 3.1'!X9 -> 70000 | Y37: ='MYFF - Outcome 3.1'!Y9 -> 60000 | Z37: ='MYFF - Outcome 3.1'!Z9 -> 0 | AB37: ='MYFF - Outcome 3.1'!AB9 -> 60000
C38: IOM | D38: 1950000 | E38: 1138204 | H38: 811796 | I38: ='MYFF - Outcome 3.1'!I10+'MYFF - Outcome 3.1'!I18+'MYFF - Outcome 3.1'!I26 -> 921943 | J38: ='MYFF - Outcome 3.1'!J10+'MYFF - Outcome 3.1'!J18+'MYFF - Outcome 3.1'!J26 -> 921943 | L38: ='MYFF - Outcome 3.1'!L10+'MYFF - Outcome 3.1'!L18+'MYFF - Outcome 3.1'!L26 -> 0 | M38: ='MYFF - Outcome 3.1'!M10+'MYFF - Outcome 3.1'!M18+'MYFF - Outcome 3.1'!M26 -> 216261 | N38: ='MYFF - Outcome 3.1'!N10+'MYFF - Outcome 3.1'!N18+'MYFF - Outcome 3.1'!N26 -> 216261 | P38: ='MYFF - Outcome 3.1'!P10+'MYFF - Outcome 3.1'!P18+'MYFF - Outcome 3.1'!P26 -> 0 | Q38: ='MYFF - Outcome 3.1'!Q10+'MYFF - Outcome 3.1'!Q18+'MYFF - Outcome 3.1'!Q26 -> 371796 | R38: ='MYFF - Outcome 3.1'!R10+'MYFF - Outcome 3.1'!R18+'MYFF - Outcome 3.1'!R26 -> 0 | T38: ='MYFF - Outcome 3.1'!T10+'MYFF - Outcome 3.1'!T18+'MYFF - Outcome 3.1'!T26 -> 371796 | U38: ='MYFF - Outcome 3.1'!U10+'MYFF - Outcome 3.1'!U18+'MYFF - Outcome 3.1'!U26 -> 220000 | V38: ='MYFF - Outcome 3.1'!V10+'MYFF - Outcome 3.1'!V18+'MYFF - Outcome 3.1'!V26 -> 0 | X38: ='MYFF - Outcome 3.1'!X10+'MYFF - Outcome 3.1'!X18+'MYFF - Outcome 3.1'!X26 -> 220000 | Y38: ='MYFF - Outcome 3.1'!Y10+'MYFF - Outcome 3.1'!Y18+'MYFF - Outcome 3.1'!Y26 -> 220000 | Z38: ='MYFF - Outcome 3.1'!Z10+'MYFF - Outcome 3.1'!Z18+'MYFF - Outcome 3.1'!Z26 -> 0 | AB38: ='MYFF - Outcome 3.1'!AB10+'MYFF - Outcome 3.1'!AB18+'MYFF - Outcome 3.1'!AB26 -> 220000
C39: OHCHR | D39: 156500 | E39: 34500 | H39: 122000 | I39: ='MYFF - Outcome 3.1'!I11 -> 0 | J39: ='MYFF - Outcome 3.1'!J11 -> 0 | L39: ='MYFF - Outcome 3.1'!L11 -> 0 | M39: ='MYFF - Outcome 3.1'!M11 -> 19500 | N39: ='MYFF - Outcome 3.1'!N11 -> 17500 | O39: ='MYFF - Outcome 3.1'!O11 -> Core Funding | P39: ='MYFF - Outcome 3.1'!P11 -> 2000 | Q39: ='MYFF - Outcome 3.1'!Q11 -> 47000 | R39: ='MYFF - Outcome 3.1'!R11 -> 17000 | T39: ='MYFF - Outcome 3.1'!T11 -> 30000 | U39: ='MYFF - Outcome 3.1'!U11 -> 45000 | V39: ='MYFF - Outcome 3.1'!V11 -> 0 | X39: ='MYFF - Outcome 3.1'!X11 -> 45000 | Y39: ='MYFF - Outcome 3.1'!Y11 -> 45000 | Z39: ='MYFF - Outcome 3.1'!Z11 -> 0 | AB39: ='MYFF - Outcome 3.1'!AB11 -> 45000
C40: UNCTAD | D40: 1950000 | E40: 120000 | H40: 1830000 | I40: ='MYFF - Outcome 3.1'!I6+'MYFF - Outcome 3.1'!I19 -> 300000 | J40: ='MYFF - Outcome 3.1'!J6+'MYFF - Outcome 3.1'!J19 -> 20000 | L40: ='MYFF - Outcome 3.1'!L6+'MYFF - Outcome 3.1'!L19 -> 280000 | M40: ='MYFF - Outcome 3.1'!M6+'MYFF - Outcome 3.1'!M19 -> 380000 | N40: ='MYFF - Outcome 3.1'!N6+'MYFF - Outcome 3.1'!N19 -> 100000 | P40: ='MYFF - Outcome 3.1'!P6+'MYFF - Outcome 3.1'!P19 -> 280000 | Q40: ='MYFF - Outcome 3.1'!Q6+'MYFF - Outcome 3.1'!Q19 -> 470000 | R40: ='MYFF - Outcome 3.1'!R6+'MYFF - Outcome 3.1'!R19 -> 0 | T40: ='MYFF - Outcome 3.1'!T6+'MYFF - Outcome 3.1'!T19 -> 470000 | U40: ='MYFF - Outcome 3.1'!U6+'MYFF - Outcome 3.1'!U19 -> 400000 | V40: ='MYFF - Outcome 3.1'!V6+'MYFF - Outcome 3.1'!V19 -> 0 | X40: ='MYFF - Outcome 3.1'!X6+'MYFF - Outcome 3.1'!X19 -> 400000 | Y40: ='MYFF - Outcome 3.1'!Y6+'MYFF - Outcome 3.1'!Y19 -> 400000 | Z40: ='MYFF - Outcome 3.1'!Z6+'MYFF - Outcome 3.1'!Z19 -> 0 | AB40: ='MYFF - Outcome 3.1'!AB6+'MYFF - Outcome 3.1'!AB19 -> 400000
C41: UNDP | D41: 15552049 | E41: 8154583 | H41: 7397466 | I41: ='MYFF - Outcome 3.1'!I7+'MYFF - Outcome 3.1'!I13+'MYFF - Outcome 3.1'!I20+'MYFF - Outcome 3.1'!I27 -> 2104466 | J41: ='MYFF - Outcome 3.1'!J7+'MYFF - Outcome 3.1'!J13+'MYFF - Outcome 3.1'!J20+'MYFF - Outcome 3.1'!J27 -> 541000 | L41: ='MYFF - Outcome 3.1'!L7+'MYFF - Outcome 3.1'!L13+'MYFF - Outcome 3.1'!L20+'MYFF - Outcome 3.1'!L27 -> 1563466 | M41: ='MYFF - Outcome 3.1'!M7+'MYFF - Outcome 3.1'!M13+'MYFF - Outcome 3.1'!M20+'MYFF - Outcome 3.1'!M27 -> 3510583 | N41: ='MYFF - Outcome 3.1'!N7+'MYFF - Outcome 3.1'!N13+'MYFF - Outcome 3.1'!N20+'MYFF - Outcome 3.1'!N27 -> 3413583 | P41: ='MYFF - Outcome 3.1'!P7+'MYFF - Outcome 3.1'!P13+'MYFF - Outcome 3.1'!P20+'MYFF - Outcome 3.1'!P27 -> 97000 | Q41: ='MYFF - Outcome 3.1'!Q7+'MYFF - Outcome 3.1'!Q13+'MYFF - Outcome 3.1'!Q20+'MYFF - Outcome 3.1'!Q27 -> 3837000 | R41: ='MYFF - Outcome 3.1'!R7+'MYFF - Outcome 3.1'!R13+'MYFF - Outcome 3.1'!R20+'MYFF - Outcome 3.1'!R27 -> 1900000 | T41: ='MYFF - Outcome 3.1'!T7+'MYFF - Outcome 3.1'!T13+'MYFF - Outcome 3.1'!T20+'MYFF - Outcome 3.1'!T27 -> 1937000 | U41: ='MYFF - Outcome 3.1'!U7+'MYFF - Outcome 3.1'!U13+'MYFF - Outcome 3.1'!U20+'MYFF - Outcome 3.1'!U27 -> 3050000 | V41: ='MYFF - Outcome 3.1'!V7+'MYFF - Outcome 3.1'!V13+'MYFF - Outcome 3.1'!V20+'MYFF - Outcome 3.1'!V27 -> 1300000 | X41: ='MYFF - Outcome 3.1'!X7+'MYFF - Outcome 3.1'!X13+'MYFF - Outcome 3.1'!X20+'MYFF - Outcome 3.1'!X27 -> 1750000 | Y41: ='MYFF - Outcome 3.1'!Y7+'MYFF - Outcome 3.1'!Y13+'MYFF - Outcome 3.1'!Y20+'MYFF - Outcome 3.1'!Y27 -> 3050000 | Z41: ='MYFF - Outcome 3.1'!Z7+'MYFF - Outcome 3.1'!Z13+'MYFF - Outcome 3.1'!Z20+'MYFF - Outcome 3.1'!Z27 -> 1000000 | AB41: ='MYFF - Outcome 3.1'!AB7+'MYFF - Outcome 3.1'!AB13+'MYFF - Outcome 3.1'!AB20+'MYFF - Outcome 3.1'!AB27 -> 2050000
C42: UNESCO | D42: 476000 | E42: 50000 | H42: 426000 | I42: ='MYFF - Outcome 3.1'!I21 -> 90000 | J42: ='MYFF - Outcome 3.1'!J21 -> 50000 | K42: ='MYFF - Outcome 3.1'!K21 -> Core Funding | L42: ='MYFF - Outcome 3.1'!L21 -> 40000 | M42: ='MYFF - Outcome 3.1'!M21 -> 0 | N42: ='MYFF - Outcome 3.1'!N21 -> 0 | P42: ='MYFF - Outcome 3.1'!P21 -> 0 | Q42: ='MYFF - Outcome 3.1'!Q21 -> 156000 | R42: ='MYFF - Outcome 3.1'!R21 -> 0 | T42: ='MYFF - Outcome 3.1'!T21 -> 156000 | U42: ='MYFF - Outcome 3.1'!U21 -> 130000 | V42: ='MYFF - Outcome 3.1'!V21 -> 0 | X42: ='MYFF - Outcome 3.1'!X21 -> 130000 | Y42: ='MYFF - Outcome 3.1'!Y21 -> 100000 | Z42: ='MYFF - Outcome 3.1'!Z21 -> 0 | AB42: ='MYFF - Outcome 3.1'!AB21 -> 100000
C43: UNFPA | D43: =SUM(I43+M43+Q43+U43+Y43) -> 500000 | E43: 355276 | H43: 144724 | I43: ='MYFF - Outcome 3.1'!I14+'MYFF - Outcome 3.1'!I22 -> 280000 | J43: ='MYFF - Outcome 3.1'!J14+'MYFF - Outcome 3.1'!J22 -> 240000 | L43: ='MYFF - Outcome 3.1'!L14+'MYFF - Outcome 3.1'!L22 -> 40000 | M43: ='MYFF - Outcome 3.1'!M14+'MYFF - Outcome 3.1'!M22 -> 220000 | N43: ='MYFF - Outcome 3.1'!N14+'MYFF - Outcome 3.1'!N22 -> 115276 | P43: ='MYFF - Outcome 3.1'!P14+'MYFF - Outcome 3.1'!P22 -> 104724 | Q43: ='MYFF - Outcome 3.1'!Q14+'MYFF - Outcome 3.1'!Q22 -> 0 | R43: ='MYFF - Outcome 3.1'!R14+'MYFF - Outcome 3.1'!R22 -> 0 | T43: ='MYFF - Outcome 3.1'!T14+'MYFF - Outcome 3.1'!T22 -> 0 | U43: ='MYFF - Outcome 3.1'!U14+'MYFF - Outcome 3.1'!U22 -> 0 | V43: ='MYFF - Outcome 3.1'!V14+'MYFF - Outcome 3.1'!V22 -> 0 | X43: ='MYFF - Outcome 3.1'!X14+'MYFF - Outcome 3.1'!X22 -> 0 | Y43: ='MYFF - Outcome 3.1'!Y14+'MYFF - Outcome 3.1'!Y22 -> 0 | Z43: ='MYFF - Outcome 3.1'!Z14+'MYFF - Outcome 3.1'!Z22 -> 0 | AB43: ='MYFF - Outcome 3.1'!AB14+'MYFF - Outcome 3.1'!AB22 -> 0
C44: UNHABITAT | D44: 2000000 | E44: 1550000 | H44: 450000 | I44: ='MYFF - Outcome 3.1'!I15 -> 200000 | J44: ='MYFF - Outcome 3.1'!J15 -> 0 | L44: ='MYFF - Outcome 3.1'!L15 -> 200000 | M44: ='MYFF - Outcome 3.1'!M15 -> 550000 | N44: ='MYFF - Outcome 3.1'!N15 -> 550000 | O44: ='MYFF - Outcome 3.1'!O15 -> Luxembourg | P44: ='MYFF - Outcome 3.1'!P15 -> 0 | Q44: ='MYFF - Outcome 3.1'!Q15 -> 500000 | R44: ='MYFF - Outcome 3.1'!R15 -> 500000 | S44: ='MYFF - Outcome 3.1'!S15 -> Luxembourg | T44: ='MYFF - Outcome 3.1'!T15 -> 0 | U44: ='MYFF - Outcome 3.1'!U15 -> 500000 | V44: ='MYFF - Outcome 3.1'!V15 -> 500000 | W44: ='MYFF - Outcome 3.1'!W15 -> Luxembourg | X44: ='MYFF - Outcome 3.1'!X15 -> 0 | Y44: ='MYFF - Outcome 3.1'!Y15 -> 250000 | Z44: ='MYFF - Outcome 3.1'!Z15 -> 0 | AB44: ='MYFF - Outcome 3.1'!AB15 -> 250000
C45: UNICEF | D45: 350000 | E45: 156000 | H45: 194000 | I45: ='MYFF - Outcome 3.1'!I23+'MYFF - Outcome 3.1'!I28 -> 200000 | J45: ='MYFF - Outcome 3.1'!J23+'MYFF - Outcome 3.1'!J28 -> 156000 | L45: ='MYFF - Outcome 3.1'!L23+'MYFF - Outcome 3.1'!L28 -> 44000 | M45: ='MYFF - Outcome 3.1'!M23+'MYFF - Outcome 3.1'!M28 -> 0 | N45: ='MYFF - Outcome 3.1'!N23+'MYFF - Outcome 3.1'!N28 -> 0 | P45: ='MYFF - Outcome 3.1'!P23+'MYFF - Outcome 3.1'!P28 -> 0 | Q45: ='MYFF - Outcome 3.1'!Q23+'MYFF - Outcome 3.1'!Q28 -> 50000 | R45: ='MYFF - Outcome 3.1'!R23+'MYFF - Outcome 3.1'!R28 -> 0 | T45: ='MYFF - Outcome 3.1'!T23+'MYFF - Outcome 3.1'!T28 -> 50000 | U45: ='MYFF - Outcome 3.1'!U23+'MYFF - Outcome 3.1'!U28 -> 50000 | V45: ='MYFF - Outcome 3.1'!V23+'MYFF - Outcome 3.1'!V28 -> 0 | X45: ='MYFF - Outcome 3.1'!X23+'MYFF - Outcome 3.1'!X28 -> 50000 | Y45: ='MYFF - Outcome 3.1'!Y23+'MYFF - Outcome 3.1'!Y28 -> 50000 | Z45: ='MYFF - Outcome 3.1'!Z23+'MYFF - Outcome 3.1'!Z28 -> 0 | AB45: ='MYFF - Outcome 3.1'!AB23+'MYFF - Outcome 3.1'!AB28 -> 50000
C46: UNIDO | D46: 535042.0168 | E46: 245042.0168 | H46: 290000 | I46: ='MYFF - Outcome 3.1'!I24 -> 61000 | J46: ='MYFF - Outcome 3.1'!J24 -> 61000 | K46: ='MYFF - Outcome 3.1'!K24 -> Core Funding | L46: ='MYFF - Outcome 3.1'!L24 -> 0 | M46: ='MYFF - Outcome 3.1'!M24 -> 59000 | N46: ='MYFF - Outcome 3.1'!N24 -> 59000 | O46: ='MYFF - Outcome 3.1'!O24 -> Core Funding | P46: ='MYFF - Outcome 3.1'!P24 -> 0 | Q46: ='MYFF - Outcome 3.1'!Q24 -> 194894.958 | R46: ='MYFF - Outcome 3.1'!R24 -> 59894.95798 | S46: ='MYFF - Outcome 3.1'!S24 -> Core Funding | T46: ='MYFF - Outcome 3.1'!T24 -> 135000 | U46: ='MYFF - Outcome 3.1'!U24 -> 200147.0588 | V46: ='MYFF - Outcome 3.1'!V24 -> 65147.05882 | W46: ='MYFF - Outcome 3.1'!W24 -> Core Funding | X46: ='MYFF - Outcome 3.1'!X24 -> 135000 | Y46: ='MYFF - Outcome 3.1'!Y24 -> 20000 | Z46: ='MYFF - Outcome 3.1'!Z24 -> 0 | AB46: ='MYFF - Outcome 3.1'!AB24 -> 20000
C47: UNODC | D47: 1683000 | E47: 1359000 | H47: 324000 | I47: ='MYFF - Outcome 3.1'!I29 -> 943000 | J47: ='MYFF - Outcome 3.1'!J29 -> 983000 | K47: ='MYFF - Outcome 3.1'!K29 -> USA, Germany, EU | L47: ='MYFF - Outcome 3.1'!L29 -> -40000 | M47: ='MYFF - Outcome 3.1'!M29 -> 580000 | N47: ='MYFF - Outcome 3.1'!N29 -> 376000 | O47: ='MYFF - Outcome 3.1'!O29 -> EU, USA, Germany | P47: ='MYFF - Outcome 3.1'!P29 -> 204000 | Q47: ='MYFF - Outcome 3.1'!Q29 -> 160000 | R47: ='MYFF - Outcome 3.1'!R29 -> 0 | T47: ='MYFF - Outcome 3.1'!T29 -> 160000 | U47: ='MYFF - Outcome 3.1'!U29 -> 0 | V47: ='MYFF - Outcome 3.1'!V29 -> 0 | X47: ='MYFF - Outcome 3.1'!X29 -> 0 | Y47: ='MYFF - Outcome 3.1'!Y29 -> 0 | Z47: ='MYFF - Outcome 3.1'!Z29 -> 0 | AB47: ='MYFF - Outcome 3.1'!AB29 -> 0
C48: UNWOMEN | D48: 150000 | E48: 0 | H48: 150000 | I48: ='MYFF - Outcome 3.1'!I12 -> 0 | J48: ='MYFF - Outcome 3.1'!J12 -> 0 | L48: ='MYFF - Outcome 3.1'!L12 -> 0 | M48: ='MYFF - Outcome 3.1'!M12 -> 0 | N48: ='MYFF - Outcome 3.1'!N12 -> 0 | P48: ='MYFF - Outcome 3.1'!P12 -> 0 | Q48: ='MYFF - Outcome 3.1'!Q12 -> 50000 | R48: ='MYFF - Outcome 3.1'!R12 -> 0 | T48: ='MYFF - Outcome 3.1'!T12 -> 50000 | U48: ='MYFF - Outcome 3.1'!U12 -> 50000 | V48: ='MYFF - Outcome 3.1'!V12 -> 0 | X48: ='MYFF - Outcome 3.1'!X12 -> 50000 | Y48: ='MYFF - Outcome 3.1'!Y12 -> 50000 | Z48: ='MYFF - Outcome 3.1'!Z12 -> 0 | AB48: ='MYFF - Outcome 3.1'!AB12 -> 50000
C49: Total | D49: =SUM(D36:D48) -> 27517577.02 | E49: =SUM(E36:E48) -> 13833279.02 | H49: =SUM(H36:H48) -> 13684298 | I49: =SUM(I36:I48) -> 5592447 | J49: =SUM(J36:J48) -> 3424981 | L49: 2167466 | M49: 5777292 | N49: 5066256 | P49: 711036 | Q49: 6387690.958 | R49: 2476894.958 | T49: 3910796 | U49: 5115147.059 | V49: 1865147.059 | X49: 3250000 | Y49: 4645000 | Z49: 1000000 | AB49: 3645000
A51: Grand Total UNCF 2023-27 | D51: =SUM(D49,D28,D35,D17) -> 116296376.5 | E51: =SUM(E49,E28,E35,E17) -> 54674625.02 | H51: =SUM(H49,H28,H35,H17) -> 61621751.47 | I51: =SUM(I49,I28,I35,I17) -> 17563228 | J51: =SUM(J49,J28,J35,J17) -> 14866926 | L51: =SUM(L49,L28,L35,L17) -> 2696302 | M51: =SUM(M49,M28,M35,M17) -> 18350999 | N51: =SUM(N49,N28,N35,N17) -> 16053349 | P51: =SUM(P49,P28,P35,P17) -> 2297650 | Q51: =SUM(Q49,Q28,Q35,Q17) -> 32828861.09 | R51: =SUM(R49,R28,R35,R17) -> 9489852.958 | T51: =SUM(T49,T28,T35,T17) -> 23339008.13 | U51: =SUM(U49,U28,U35,U17) -> 25359674.73 | V51: =SUM(V49,V28,V35,V17) -> 8215147.059 | X51: =SUM(X49,X28,X35,X17) -> 17144527.67 | Y51: =SUM(Y49,Y28,Y35,Y17) -> 22193613.67 | Z51: =SUM(Z49,Z28,Z35,Z17) -> 6049350 | AB51: =SUM(AB49,AB28,AB35,AB17) -> 16144263.67

Sheet MYFF - Outcome 1.1
A1: Multi-Year Funding Framework (MYFF) - United Nations Sustainable Development Cooperation Framework (UNSDCF) 2023-2027 Cabo Verde
A2: Outcome 1.1. By 2027, more people, especially those living in the most vulnerable and marginalized situations and those living with disabilities, have equitable access to and use of high-quality, resilient, gender-responsive, and modern essential social services and protection
A3: Cooperation Framework Output | B3: Predicted cost of the output | C3: UN Entity
D4: MYFF (2023-2027) | I4: YEAR 1 (2023) | M4: YEAR 2 (2024) | Q4: YEAR 3 (2025) | U4: YEAR 4 (2026) | Y4: YEAR 5 (2027)
D5: Total Funding Required | E5: Available Funding | F5: Source of Available Funding | G5: Type of Available Funding (assessed, core, non-core) | H5: Funding to be Mobilized (D - E) | I5: Total Funding Required | J5: Available Funding | K5: Source of Available Funding | L5: Funding to be Mobilized | M5: Total Funding Required | N5: Available Funding | O5: Source of Available Funding | P5: Funding to be Mobilized | Q5: Total Funding Required | R5: Available Funding | S5: Source of Available Funding | T5: Funding to be Mobilized | U5: Total Funding Required | V5: Available Funding | W5: Source of Available Funding | X5: Funding to be Mobilized | Y5: Total Funding Required | Z5: Available Funding | AA5: Source of Available Funding | AB5: Funding to be Mobilized
A6: Output 1.1.1: National institutions, social partners and civil society organizations, have stronger capacities to deliver, innovate and partner for social protection and the protection of children and adolescents, essential services, data, monitoring and reporting systems | B6: =D14 -> 9668324 | C6: ILO | D6: =SUM(I6+M6+Q6+U6+Y6) -> 150397 | E6: =SUM(J6+N6+R6+V6+Z6) -> 150397 | H6: =D6-E6 -> 0 | I6: 30041 | J6: 30041 | L6: =I6-J6 -> 0 | M6: 58882 | N6: 58882 | P6: =M6-N6 -> 0 | Q6: 31474 | R6: 31474 | T6: =Q6-R6 -> 0 | U6: 30000 | V6: 30000 | X6: =U6-V6 -> 0 | Y6: 0 | Z6: 0 | AB6: =Y6-Z6 -> 0
C7: UNDP | D7: 230000 | E7: 148000 | H7: 82000 | I7: 125000 | J7: 78000 | L7: 47000 | M7: 105000 | N7: 70000 | P7: 35000 | Q7: 0 | R7: 0 | T7: 0 | U7: 0 | V7: 0 | X7: 0 | Y7: 0 | Z7: 0 | AB7: 0
C8: UNFPA | D8: 834350 | E8: 744350 | H8: 90000 | I8: 135000 | J8: 135000 | L8: 0 | M8: 220000 | N8: 220000 | P8: 0 | Q8: 200000 | R8: 170000 | T8: 30000 | U8: 200000 | V8: 170000 | X8: 30000 | Y8: 79350 | Z8: 49350 | AB8: 30000
C9: UNHABITAT | D9: 720191 | E9: 243455 | H9: 476736 | I9: 30000 | J9: 30000 | L9: 0 | M9: 133455 | N9: 133455 | P9: 0 | Q9: 200000 | R9: 80000 | T9: 120000 | U9: 200000 | V9: 0 | X9: 200000 | Y9: 156736 | Z9: 0 | AB9: 156736
C10: UNICEF | D10: 3793000 | E10: 2293000 | H10: 1500000 | I10: 1428700 | J10: 1353700 | L10: 75000 | M10: 928650 | N10: 813500 | P10: 115150 | Q10: 1135650 | R10: 125800 | T10: 1009850 | U10: 300000 | V10: 0 | X10: 300000 | Y10: 0 | Z10: 0 | AB10: 0
C11: UNODC | D11: 514038 | E11: 279038 | H11: 235000 | I11: 199736 | J11: 189736 | L11: 10000 | M11: 94302 | N11: 89302 | P11: 5000 | Q11: 130000 | R11: 0 | T11: 130000 | U11: 90000 | V11: 0 | X11: =U11-V11 -> 90000 | Y11: 0 | Z11: 0 | AB11: 0
C12: UNWOMEN | D12: 50000 | E12: 0 | H12: 50000 | I12: 10000 | L12: 10000 | M12: 10000 | P12: 10000 | Q12: 10000 | T12: 10000 | U12: 10000 | X12: =U12-V12 -> 10000 | Y12: 10000 | AB12: 10000
C13: WHO | D13: 3376348 | E13: 1376348 | H13: 2000000 | I13: 725000 | J13: 725000 | L13: 0 | M13: 1001523 | N13: 651348 | P13: 350175 | Q13: 1049825 | R13: 0 | T13: 1049825 | U13: 600000 | V13: 0 | X13: 600000 | Y13: 0 | Z13: 0 | AB13: 0
C14: Total Output 1.1.1 | D14: =SUM(D6:D13) -> 9668324 | E14: =SUM(E6:E13) -> 5234588 | H14: =SUM(H6:H13) -> 4433736 | I14: =SUM(I6:I13) -> 2683477 | J14: =SUM(J6:J13) -> 2541477 | L14: =SUM(L6:L13) -> 142000 | M14: =SUM(M6:M13) -> 2551812 | N14: =SUM(N6:N13) -> 2036487 | P14: =SUM(P6:P13) -> 515325 | Q14: =SUM(Q6:Q13) -> 2756949 | R14: =SUM(R6:R13) -> 407274 | T14: =SUM(T6:T13) -> 2349675 | U14: =SUM(U6:U13) -> 1430000 | V14: =SUM(V6:V13) -> 200000 | X14: =SUM(X6:X13) -> 1230000 | Y14: =SUM(Y6:Y13) -> 246086 | Z14: =SUM(Z6:Z13) -> 49350 | AB14: =SUM(AB6:AB13) -> 196736
A15: Output 1.1.2: More people in vulnerable situations and marginalized situations have access to and are empowered through quality education, health care and tools to exercise their rights. | B15: =D25 -> 6213540 | C15: ILO | D15: =SUM(I15+M15+Q15+U15+Y15) -> 147251 | E15: =SUM(J15+N15+R15+V15+Z15) -> 147251 | H15: =D15-E15 -> 0 | I15: 82171 | J15: 82171 | L15: =I15-J15 -> 0 | M15: 65080 | N15: 65080 | P15: =M15-N15 -> 0 | Q15: 0 | R15: 0 | T15: =Q15-R15 -> 0 | U15: 0 | V15: 0 | X15: =U15-V15 -> 0 | Y15: 0 | Z15: 0 | AB15: =Y15-Z15 -> 0
C16: IOM | D16: =SUM(I16+M16+Q16+U16+Y16) -> 822675 | E16: =SUM(J16+N16+R16+V16+Z16) -> 42675 | H16: 780000 | I16: 22675 | J16: 22675 | L16: 0 | M16: 20000 | N16: 20000 | P16: 0 | Q16: 280000 | R16: 0 | T16: 280000 | U16: 250000 | V16: 0 | X16: 250000 | Y16: 250000 | Z16: 0 | AB16: 250000
C17: UNDP | D17: =SUM(I17+M17+Q17+U17+Y17) -> 171000 | E17: 144000 | H17: 27000 | I17: 36000 | J17: 36000 | L17: 0 | M17: 108000 | N17: 98000 | P17: 10000 | Q17: 27000 | R17: 10000 | T17: 17000 | U17: 0 | V17: 0 | X17: 0 | Y17: 0 | Z17: 0 | AB17: 0
C18: UNESCO | D18: 546000 | E18: 123000 | H18: 423000 | I18: 0 | J18: 15000 | L18: -15000 | M18: 108000 | N18: 108000 | P18: 0 | Q18: 150000 | R18: 0 | T18: 150000 | U18: 150000 | V18: 0 | X18: 150000 | Y18: 138000 | Z18: 0 | AB18: 138000
C19: UNFPA | D19: 300000 | E19: 300000 | H19: 0 | I19: 100000 | J19: 100000 | L19: 0 | M19: 200000 | N19: 200000 | P19: 0 | Q19: 0 | R19: 0 | T19: 0 | U19: 0 | V19: 0 | X19: 0 | Y19: 0 | Z19: 0 | AB19: 0
C20: ITU | D20: 40000 | E20: 10000 | H20: 30000 | I20: 30000 | J20: 5000 | L20: 25000 | M20: 10000 | N20: 5000 | P20: 5000 | Q20: 0 | R20: 0 | T20: 0 | U20: 0 | V20: 0 | X20: 0 | Y20: 0 | Z20: 0 | AB20: 0
C21: UNICEF | D21: 2860114 | E21: 1285114 | H21: 1575000 | I21: 848214 | J21: 848214 | L21: 0 | M21: 321850 | N21: 279000 | P21: 42850 | Q21: 690050 | R21: 157900 | T21: 532150 | U21: 500000 | V21: 0 | X21: 500000 | Y21: 500000 | Z21: 0 | AB21: 500000
C22: UNODC | D22: 298000 | E22: 48000 | H22: 250000 | I22: 55000 | J22: 30000 | L22: 25000 | M22: 45000 | N22: 18000 | P22: 27000 | Q22: 78000 | R22: 0 | T22: 78000 | U22: 60000 | V22: 0 | X22: 60000 | Y22: 60000 | Z22: 0 | AB22: 60000
C23: UNWOMEN | D23: =SUM(I23+M23+Q23+U23+Y23) -> 50000 | E23: =SUM(J23+N23+R23+V23+Z23) -> 0 | H23: =D23-E23 -> 50000 | I23: 10000 | L23: 10000 | M23: 10000 | P23: 10000 | Q23: 10000 | T23: 10000 | U23: 10000 | X23: 10000 | Y23: 10000 | AB23: 10000
C24: WHO | D24: 978500 | E24: 378500 | H24: 600000 | I24: 197000 | J24: 197000 | L24: 0 | M24: 226000 | N24: 181500 | P24: 44500 | Q24: 200500 | R24: 0 | T24: 200500 | U24: 180000 | V24: 0 | X24: 180000 | Y24: 175000 | Z24: 0 | AB24: 175000
C25: Total Output 1.1.2. | D25: =SUM(D15:D24) -> 6213540 | E25: =SUM(E15:E24) -> 2478540 | H25: =SUM(H15:H24) -> 3735000 | I25: =SUM(I15:I24) -> 1381060 | J25: =SUM(J15:J24) -> 1336060 | L25: =SUM(L15:L24) -> 45000 | M25: =SUM(M15:M24) -> 1113930 | N25: =SUM(N15:N24) -> 974580 | P25: =SUM(P15:P24) -> 139350 | Q25: =SUM(Q15:Q24) -> 1435550 | R25: =SUM(R15:R24) -> 167900 | T25: =SUM(T15:T24) -> 1267650 | U25: =SUM(U15:U24) -> 1150000 | V25: =SUM(V15:V24) -> 0 | X25: =SUM(X15:X24) -> 1150000 | Y25: =SUM(Y15:Y24) -> 1133000 | Z25: =SUM(Z15:Z24) -> 0 | AB25: =SUM(AB15:AB24) -> 1133000
A26: Output 1.1.3: Policies and regulatory frameworks better enable access to, utilization and modernization of inclusive, digital, gender-responsive and resilient social and protection services, including for informal settlements. | B26: =D33 -> 2150088 | C26: ILO | D26: =SUM(I26+M26+Q26+U26+Y26) -> 92650 | E26: =SUM(J26+N26+R26+V26+Z26) -> 92650 | H26: =D26-E26 -> 0 | I26: 61660 | J26: 61660 | L26: =I26-J26 -> 0 | M26: 30990 | N26: 30990 | P26: =M26-N26 -> 0 | Q26: 0 | R26: 0 | T26: =Q26-R26 -> 0 | U26: 0 | V26: 0 | X26: =U26-V26 -> 0 | Y26: 0 | Z26: 0 | AB26: =Y26-Z26 -> 0
C27: ITU | D27: 40000 | E27: 25000 | H27: 15000 | I27: 20000 | J27: 10000 | L27: 10000 | M27: 20000 | N27: 15000 | P27: 5000 | Q27: 0 | R27: 0 | T27: 0 | U27: 0 | V27: 0 | X27: 0 | Y27: 0 | Z27: 0 | AB27: 0
C28: UNFPA | D28: 0 | E28: 0 | H28: 0 | I28: 0 | J28: 0 | L28: 0 | M28: 0 | N28: 0 | P28: 0 | Q28: 0 | R28: 0 | T28: 0 | U28: 0 | V28: 0 | X28: 0 | Y28: 0 | Z28: 0 | AB28: 0
C29: UNICEF | D29: 400800 | E29: 146100 | H29: 254700 | I29: 17500 | J29: 17500 | L29: 0 | M29: 62000 | N29: 61500 | P29: 500 | Q29: 121300 | R29: 57100 | T29: 64200 | U29: 110000 | V29: 10000 | X29: 100000 | Y29: 90000 | Z29: 0 | AB29: 90000
C30: UNODC | D30: 308264 | E30: 58764 | H30: 249500 | I30: 62400 | J30: 33000 | L30: 29400 | M30: 21000 | N30: 17500 | P30: 3500 | Q30: 84864 | R30: 8264 | T30: 76600 | U30: 70000 | V30: 0 | X30: 70000 | Y30: 70000 | Z30: 0 | AB30: 70000
C31: UNWOMEN | D31: 50000 | E31: 0 | H31: 50000 | I31: 10000 | L31: 10000 | M31: 10000 | P31: 10000 | Q31: 10000 | T31: 10000 | U31: 10000 | X31: 10000 | Y31: 10000 | AB31: 10000
C32: WHO | D32: 1258374 | E32: 576825 | H32: 681549 | I32: 260000 | J32: 260000 | L32: 0 | M32: 316825 | N32: 316825 | P32: 0 | Q32: 251549 | R32: 0 | T32: 251549 | U32: 230000 | V32: 0 | X32: 230000 | Y32: 200000 | Z32: 0 | AB32: 200000
C33: Total Output 1.1.3 | D33: =SUM(D26:D32) -> 2150088 | E33: =SUM(E26:E32) -> 899339 | H33: =SUM(H26:H32) -> 1250749 | I33: =SUM(I26:I30) -> 161560 | J33: =SUM(J26:J30) -> 122160 | L33: =SUM(L26:L30) -> 39400 | M33: =SUM(M26:M30) -> 133990 | N33: =SUM(N26:N30) -> 124990 | P33: =SUM(P26:P30) -> 9000 | Q33: =SUM(Q26:Q30) -> 206164 | R33: =SUM(R26:R30) -> 65364 | T33: =SUM(T26:T30) -> 140800 | U33: =SUM(U26:U30) -> 180000 | V33: =SUM(V26:V30) -> 10000 | X33: =SUM(X26:X30) -> 170000 | Y33: =SUM(Y26:Y30) -> 160000 | Z33: =SUM(Z26:Z30) -> 0 | AB33: =SUM(AB26:AB30) -> 160000
A35: Grand Total Outcome 1.1 | D35: =SUM(D33,D25,D14) -> 18031952 | E35: =SUM(E33,E25,E14) -> 8612467 | H35: =SUM(H33,H25,H14) -> 9419485 | I35: =SUM(I33,I25,I14) -> 4226097 | J35: =SUM(J33,J25,J14) -> 3999697 | L35: =SUM(L33,L25,L14) -> 226400 | M35: =SUM(M33,M25,M14) -> 3799732 | N35: =SUM(N33,N25,N14) -> 3136057 | P35: =SUM(P33,P25,P14) -> 663675 | Q35: =SUM(Q33,Q25,Q14) -> 4398663 | R35: =SUM(R33,R25,R14) -> 640538 | T35: =SUM(T33,T25,T14) -> 3758125 | U35: =SUM(U33,U25,U14) -> 2760000 | V35: =SUM(V33,V25,V14) -> 210000 | X35: =SUM(X33,X25,X14) -> 2550000 | Y35: =SUM(Y33,Y25,Y14) -> 1539086 | Z35: =SUM(Z33,Z25,Z14) -> 49350 | AB35: =SUM(AB33,AB25,AB14) -> 1489736

Sheet MYFF - Outcome 2.1
A1: Multi-Year Funding Framework (MYFF) - United Nations Sustainable Development Cooperation Framework (UNSDCF) 2023-2027 Cabo Verde
A2: Outcome 2.1: By 2027, a more sustainable, inclusive, diversified and integrated economy generates decent jobs, food security and nutrition for the most vulnerable, especially women, youth and the extreme poor
A3: Cooperation Framework Output | B3: Predicted cost of the output | C3: UN Entity
D4: MYFF (2023-2027) | I4: YEAR 1 (2023) | M4: YEAR 2 (2024) | Q4: YEAR 3 (2025) | U4: YEAR 4 (2026) | Y4: YEAR 5 (2027)
D5: Total Funding Required | E5: Available Funding | F5: Source of Available Funding | G5: Type of Available Funding (assessed, core, non-core) | H5: Funding to be Mobilized (D - E) | I5: Total Funding Required | J5: Available Funding | K5: Source of Available Funding | L5: Funding to be Mobilized | M5: Total Funding Required | N5: Available Funding | O5: Source of Available Funding | P5: Funding to be Mobilized | Q5: Total Funding Required | R5: Available Funding | S5: Source of Available Funding | T5: Funding to be Mobilized | U5: Total Funding Required | V5: Available Funding | W5: Source of Available Funding | X5: Funding to be Mobilized | Y5: Total Funding Required | Z5: Available Funding | AA5: Source of Available Funding | AB5: Funding to be Mobilized
A6: Output 2.1.1: Institutional frameworks are enhanced and more inclusive, and duty bearers have strengthened capacities for better business environment, national quality systems, regional integration, a greater diaspora contribution to the economy, and the protection of workers’ rights. | B6: =D14 -> 11998178 | C6: FAO | D6: =SUM(I6+M6+Q6+U6+Y6) -> 1639141 | E6: 600555 | H6: =D6-E6 -> 1038586 | I6: 310000 | J6: 271414 | K6: China, core funds | L6: =I6-J6 -> 38586 | M6: 329141 | N6: 329141 | O6: China | P6: =M6-N6 -> 0 | Q6: 350000 | R6: 0 | T6: =Q6-R6 -> 350000 | U6: 350000 | V6: 0 | X6: =U6-V6 -> 350000 | Y6: 300000 | Z6: 0 | AB6: =Y6-Z6 -> 300000
C7: ILO | D7: 2741475 | E7: 2270689 | H7: 470786 | I7: 374451 | J7: 354451 | K7: Luxem bourg, Joint SDG, Finland | L7: =I7-J7 -> 20000 | M7: 757024 | N7: 636238 | O7: Luxembourg, Finland | P7: =M7-N7 -> 120786 | Q7: 750000 | R7: 640000 | T7: =Q7-R7 -> 110000 | U7: 750000 | V7: 640000 | X7: =U7-V7 -> 110000 | Y7: 110000 | Z7: 0 | AB7: =Y7-Z7 -> 110000
C8: IOM | D8: 4891846 | E8: 448524 | H8: 4443322 | I8: 190940 | J8: 190940 | K8: IOM dev. Fund, Joint SDG, France | L8: 0 | M8: 257584 | N8: 257584 | O8: IOM dev fund, Joint SDG | P8: 0 | Q8: 1543322 | R8: 0 | T8: 1543322 | U8: 1500000 | V8: 0 | X8: 1500000 | Y8: 1400000 | Z8: 0 | AB8: 1400000
C9: ITU | D9: 15000 | E9: 10000 | H9: 5000 | I9: 15000 | J9: 10000 | K9: core funds | L9: 5000 | M9: 0 | N9: 0 | P9: 0 | Q9: 0 | R9: 0 | T9: 0 | U9: 0 | V9: 0 | X9: 0 | Y9: 0 | Z9: 0 | AB9: 0
C10: UNDP | D10: 309000 | E10: 59000 | H10: 250000 | I10: 39000 | J10: 39000 | K10: core funds | L10: 0 | M10: 20000 | N10: 20000 | O10: core funds | P10: 0 | Q10: 100000 | R10: 0 | T10: 100000 | U10: 50000 | V10: 0 | X10: 50000 | Y10: 100000 | Z10: 0 | AB10: 100000
C11: UNECA | D11: 155000 | E11: 129000 | H11: 26000 | I11: 58000 | J11: 32000 | K11: core funds | L11: 26000 | M11: 97000 | N11: 97000 | O11: core funds | P11: 0 | Q11: 0 | R11: 0 | T11: 0 | U11: 0 | V11: 0 | X11: 0 | Y11: 0 | Z11: 0 | AB11: 0
C12: UNIDO | D12: 2039500 | E12: 39500 | H12: 2000000 | I12: 39500 | J12: 39500 | K12: EU | L12: 0 | M12: 500000 | N12: 0 | P12: 500000 | Q12: 500000 | R12: 0 | T12: 500000 | U12: 500000 | V12: 0 | X12: 500000 | Y12: 500000 | Z12: 0 | AB12: 500000
C13: WIPO | D13: 207216 | E13: 207216 | F13: 207216 | G13: 207216 | H13: 0 | I13: 112137 | J13: 112137 | K13: core funds | L13: 0 | M13: 35159 | N13: 35159 | O13: core funds | P13: 0 | Q13: 59920 | R13: 59920 | S13: core funds | T13: 0 | U13: 0 | V13: 0 | X13: 0 | Y13: 0 | Z13: 0 | AB13: 0
C14: Total Output 2.2.1 | D14: =SUM(D6:D13) -> 11998178 | E14: =SUM(E6:E13) -> 3764484 | H14: =SUM(H6:H13) -> 8233694 | I14: =SUM(I6:I13) -> 1139028 | J14: =SUM(J6:J13) -> 1049442 | L14: 89586 | M14: =SUM(M6:M13) -> 1995908 | N14: =SUM(N6:N13) -> 1375122 | P14: 620786 | Q14: =SUM(Q6:Q13) -> 3303242 | R14: =SUM(R6:R13) -> 699920 | T14: 2603322 | U14: =SUM(U6:U13) -> 3150000 | V14: =SUM(V6:V13) -> 640000 | X14: 2510000 | Y14: =SUM(Y6:Y13) -> 2410000 | Z14: =SUM(Z6:Z13) -> 0 | AB14: 2410000
A15: Output 2.1.2: Small and medium-sized enterprises are integrated into green, blue and value chains, their productive capacities and access to financial and non-financial services are strengthened, and market, nature-based, and energy-efficient solutions (in the private sector) are promoted. | B15: =D20 -> 10091003.53 | C15: FAO | D15: =SUM(I15+M15+Q15+U15+Y15) -> 3732490 | E15: =SUM(J15+N15+R15+V15+Z15) -> 1732490 | H15: =D15-E15 -> 2000000 | I15: 689500 | J15: 689500 | K15: Spain, China, GEF, Joint SDG, core funds | L15: 0 | M15: 1042990 | N15: 1042990 | O15: Spain, China, GEF, Joint SDG, core funds | P15: 0 | Q15: 800000 | R15: 0 | T15: 800000 | U15: 700000 | V15: 0 | X15: 700000 | Y15: 500000 | Z15: 0 | AB15: 500000
C16: UNDP | D16: =SUM(I16+M16+Q16+U16+Y16) -> 2658850 | E16: 2162000 | H16: 496850 | I16: 808850 | J16: 662000 | K16: core funds | L16: 146850 | M16: 500000 | N16: 500000 | O16: core funds | P16: 0 | Q16: 550000 | R16: 500000 | T16: 50000 | U16: 500000 | V16: 500000 | X16: 0 | Y16: 300000 | Z16: 0 | AB16: 300000
C17: UNESCO | D17: =SUM(I17+M17+Q17+U17+Y17) -> 125600 | E17: =SUM(J17+N17+R17+V17+Z17) -> 125600 | H17: =D17-E17 -> 0 | I17: 100000 | J17: 100000 | K17: core funds | L17: =I17-J17 -> 0 | M17: 25600 | N17: 25600 | O17: core funds | P17: =M17-N17 -> 0 | Q17: 0 | R17: 0 | T17: =Q17-R17 -> 0 | U17: 0 | V17: 0 | X17: =U17-V17 -> 0 | Y17: 0 | Z17: 0 | AB17: =Y17-Z17 -> 0
C18: UNIDO | D18: =SUM(I18+M18+Q18+U18+Y18) -> 3502063.532 | E18: =SUM(J18+N18+R18+V18+Z18) -> 152663 | H18: =D18-E18 -> 3349400.532 | I18: 51977 | J18: 51977 | K18: Joint SDG | L18: =I18-J18 -> 0 | M18: 100686 | N18: 100686 | O18: Joint SDG | P18: =M18-N18 -> 0 | Q18: 1702200.266 | R18: 0 | T18: =Q18-R18 -> 1702200.266 | U18: 851100.133 | V18: 0 | X18: =U18-V18 -> 851100.133 | Y18: 796100.133 | Z18: 0 | AB18: =Y18-Z18 -> 796100.133
C19: WIPO | D19: 72000 | E19: 72000 | H19: 0 | I19: 0 | J19: 0 | L19: 0 | M19: 72000 | N19: 72000 | O19: core funds | P19: 0 | Q19: 0 | R19: 0 | T19: 0 | U19: 0 | V19: 0 | X19: 0 | Y19: 0 | Z19: 0 | AB19: 0
C20: Total Output 2.1.2. | D20: =SUM(D15:D19) -> 10091003.53 | E20: =SUM(E15:E19) -> 4244753 | H20: =SUM(H15:H19) -> 5846250.532 | I20: =SUM(I15:I19) -> 1650327 | J20: =SUM(J15:J19) -> 1503477 | L20: 146850 | M20: =SUM(M15:M19) -> 1741276 | N20: =SUM(N15:N19) -> 1741276 | P20: 0 | Q20: =SUM(Q15:Q19) -> 3052200.266 | R20: =SUM(R15:R19) -> 500000 | T20: 2552200.266 | U20: =SUM(U15:U19) -> 2051100.133 | V20: =SUM(V15:V19) -> 500000 | X20: 1551100.133 | Y20: =SUM(Y15:Y19) -> 1596100.133 | Z20: =SUM(Z15:Z19) -> 0 | AB20: 1596100.133
A21: Output 2.1.3: More people, especially women, youth, children, those living with disabilities, migrants and the extreme poor, have adequate and culturally accepted access to safe and nutritious foods at all times. | B21: =D23 -> 3055177 | C21: FAO | D21: =SUM(I21+M21+Q21+U21+Y21) -> 2065177 | E21: 835058 | H21: =D21-E21 -> 1230119 | I21: 450000 | J21: 450000 | K21: Belgium, Korea, core funds | L21: 0 | M21: 385058 | N21: 385058 | O21: Belgium, Korea, core funds | P21: 0 | Q21: 430119 | R21: 0 | T21: 430119 | U21: 400000 | V21: 0 | X21: 400000 | Y21: 400000 | Z21: 0 | AB21: 400000
C22: WFP | D22: 990000 | E22: 990000 | H22: 0 | I22: 990000 | J22: 990000 | K22: ECOWAS, Japan | L22: 0 | M22: 0 | N22: 0 | P22: 0 | Q22: 0 | R22: 0 | T22: 0 | U22: 0 | V22: 0 | X22: 0 | Y22: 0 | Z22: 0 | AB22: 0
C23: Total Output 2.1.3. | D23: =SUM(D21:D22) -> 3055177 | E23: =SUM(E21:E22) -> 1825058 | H23: =SUM(H21:H22) -> 1230119 | I23: =SUM(I21:I22) -> 1440000 | J23: =SUM(J21:J22) -> 1440000 | L23: 0 | M23: =SUM(M21:M22) -> 385058 | N23: =SUM(N21:N22) -> 385058 | P23: 0 | Q23: =SUM(Q21:Q22) -> 430119 | R23: =SUM(R21:R22) -> 0 | T23: 430119 | U23: =SUM(U21:U22) -> 400000 | V23: =SUM(V21:V22) -> 0 | X23: 400000 | Y23: =SUM(Y21:Y22) -> 400000 | Z23: =SUM(Z21:Z22) -> 0 | AB23: 400000
A24: Output 2.1.4: More people have access to upgraded technical and vocational education and training (TVET) for relevant skills to the current and future labour market, social protection and decent jobs. | B24: =D28 -> 3277340.335 | C24: IOM | D24: =I24+M24+Q24+U24+Y24 -> 2613691 | E24: =J24+N24+R24+V24+Z24 -> 163691 | H24: =D24-E24 -> 2450000 | I24: 85000 | J24: 85000 | K24: IOM dev. Fund | L24: =I24-J24 -> 0 | M24: 78691 | N24: 78691 | O24: IOM dev fund | P24: =M24-N24 -> 0 | Q24: 950000 | R24: 0 | T24: 950000 | U24: 800000 | V24: 0 | X24: 800000 | Y24: 700000 | Z24: 0 | AB24: 700000
C25: UNDP | D25: =SUM(I25+M25+Q25+U25+Y25) -> 50000 | E25: 0 | H25: =D25-E25 -> 50000 | I25: 0 | J25: 0 | L25: 0 | M25: 25000 | N25: 0 | P25: 25000 | Q25: 25000 | R25: 0 | T25: 25000 | U25: 0 | V25: 0 | X25: 0 | Y25: 0 | Z25: 0 | AB25: 0
C26: UNIDO | D26: 541149.3351 | E26: 0 | H26: 541149.3351 | I26: 0 | J26: 0 | L26: 0 | M26: 0 | N26: 0 | P26: 0 | Q26: 270574.6676 | R26: 0 | T26: 270574.6676 | U26: 135287.3338 | V26: 0 | X26: 135287.3338 | Y26: 135287.3338 | Z26: 0 | AB26: 135287.3338
C27: WIPO | D27: =SUM(I27+M27+Q27+U27+Y27) -> 72500 | E27: =SUM(J27+N27+R27+V27+Z27) -> 72500 | H27: 0 | L27: 0 | P27: 0 | Q27: 72500 | R27: 72500 | T27: 0 | X27: 0 | AB27: 0
C28: Total Output 2.1.4 | D28: =SUM(D24:D27) -> 3277340.335 | E28: =SUM(E24:E27) -> 236191 | H28: =SUM(H24:H27) -> 3041149.335 | I28: =SUM(I24:I27) -> 85000 | J28: =SUM(J24:J27) -> 85000 | L28: 0 | M28: =SUM(M24:M27) -> 103691 | N28: =SUM(N24:N27) -> 78691 | P28: 25000 | Q28: =SUM(Q24:Q27) -> 1318074.668 | R28: =SUM(R24:R27) -> 72500 | T28: 1245574.668 | U28: =SUM(U24:U27) -> 935287.3338 | V28: =SUM(V24:V27) -> 0 | X28: 935287.3338 | Y28: =SUM(Y24:Y27) -> 835287.3338 | Z28: =SUM(Z24:Z27) -> 0 | AB28: 835287.3338
A30: Grand Total Outcome 2.1 | D30: =SUM(D23,D20,D14,D28) -> 28421698.87 | E30: =SUM(E23,E20,E14,E28) -> 10070486 | H30: =SUM(H23,H20,H14,H28) -> 18351212.87 | I30: =SUM(I23,I20,I14,I28) -> 4314355 | J30: =SUM(J23+J20+J14,J28) -> 4077919 | L30: =SUM(L23+L20+L14,L28) -> 236436 | M30: =SUM(M23,M20,M14,M28) -> 4225933 | N30: =SUM(N23+N20+N14,N28) -> 3580147 | P30: =SUM(P23+P20+P14,P28) -> 645786 | Q30: =SUM(Q23,Q20,Q14,Q28) -> 8103635.934 | R30: =SUM(R23+R20+R14,R28) -> 1272420 | T30: =SUM(T23+T20+T14,T28) -> 6831215.934 | U30: =SUM(U23,U20,U14,U28) -> 6536387.467 | V30: =SUM(V23+V20+V14,V28) -> 1140000 | X30: =SUM(X23+X20+X14,X28) -> 5396387.467 | Y30: =SUM(Y23,Y20,Y14,Y28) -> 5241387.467 | Z30: =SUM(Z23+Z20+Z14,Z28) -> 0 | AB30: =SUM(AB23+AB20+AB14,AB28) -> 5241387.467

Sheet MYFF - Outcome 2.2
A1: Multi-Year Funding Framework (MYFF) - United Nations Sustainable Development Cooperation Framework (UNSDCF) 2023-2027 Cabo Verde
A2: Outcome 2.2: By 2027, key marine and land ecosystems and biodiversity are better protected, restored, and more sustainably managed and the resilience to shocks and climate change impacts are improved and gender responsive.
A3: Cooperation Framework Output | B3: Predicted cost of the output | C3: UN Entity
D4: MYFF (2023-2027) | I4: YEAR 1 (2023) | M4: YEAR 2 (2024) | Q4: YEAR 3 (2025) | U4: YEAR 4 (2026) | Y4: YEAR 5 (2027)
D5: Total Funding Required | E5: Available Funding | F5: Source of Available Funding | G5: Type of Available Funding (assessed, core, non-core) | H5: Funding to be Mobilized (D - E) | I5: Total Funding Required | J5: Available Funding | K5: Source of Available Funding | L5: Funding to be Mobilized | M5: Total Funding Required | N5: Available Funding | O5: Source of Available Funding | P5: Funding to be Mobilized | Q5: Total Funding Required | R5: Available Funding | S5: Source of Available Funding | T5: Funding to be Mobilized | U5: Total Funding Required | V5: Available Funding | W5: Source of Available Funding | X5: Funding to be Mobilized | Y5: Total Funding Required | Z5: Available Funding | AA5: Source of Available Funding | AB5: Funding to be Mobilized
A6: Output 2.2.1: More people and institutions have knowledge and awareness of natural wealth, the risks of degradations, and adequate access to natural resources management services and infrastructures | B6: =D10 -> 8489000 | C6: FAO | D6: =SUM(I6+M6+Q6+U6+Y6) -> 5000000 | E6: 3358779 | H6: =D6-E6 -> 1641221 | I6: 178779 | J6: 178779 | K6: GCF, GEF | L6: =I6-J6 -> 0 | M6: 180000 | N6: 180000 | O6: GCF, GEF | P6: =M6-N6 -> 0 | Q6: 1641221 | R6: 1000000 | T6: =Q6-R6 -> 641221 | U6: 1500000 | V6: 1000000 | X6: =U6-V6 -> 500000 | Y6: 1500000 | Z6: 1000000 | AB6: =Y6-Z6 -> 500000
C7: ONUHABITAT | D7: 100000 | E7: 0 | H7: 100000 | I7: 0 | J7: 0 | L7: =I7-J7 -> 0 | M7: 0 | N7: 0 | P7: =M7-N7 -> 0 | Q7: 50000 | R7: 0 | T7: =Q7-R7 -> 50000 | U7: 50000 | V7: 0 | X7: =U7-V7 -> 50000 | Y7: 0 | Z7: 0 | AB7: =Y7-Z7 -> 0
C8: UNDP | D8: 3000000 | E8: 906000 | H8: 2094000 | I8: 430000 | J8: 430000 | K8: GEF, core funds | L8: 0 | M8: 476000 | N8: 476000 | O8: GEF, core funds | P8: 0 | Q8: 794000 | R8: 0 | T8: 794000 | U8: 700000 | V8: 0 | X8: 700000 | Y8: 600000 | Z8: 0 | AB8: 600000
C9: UNESCO | D9: 389000 | E9: 11384 | H9: 377616 | I9: 0 | J9: 0 | L9: 0 | M9: 28000 | N9: 11384 | O9: Core funds | P9: 16616 | Q9: 121000 | R9: 0 | T9: 121000 | U9: 120000 | V9: 0 | X9: 120000 | Y9: 120000 | Z9: 0 | AB9: 120000
C10: Total Output 2.2.1. | D10: =SUM(D6:D9) -> 8489000 | E10: =SUM(E6:E9) -> 4276163 | H10: =SUM(H6:H9) -> 4212837 | I10: =SUM(I6:I9) -> 608779 | J10: =SUM(J6:J9) -> 608779 | L10: =SUM(L6:L9) -> 0 | M10: =SUM(M6:M9) -> 684000 | N10: =SUM(N6:N9) -> 667384 | P10: =SUM(P6:P9) -> 16616 | Q10: =SUM(Q6:Q9) -> 2606221 | R10: =SUM(R6:R9) -> 1000000 | T10: =SUM(T6:T9) -> 1606221 | U10: =SUM(U6:U9) -> 2370000 | V10: =SUM(V6:V9) -> 1000000 | X10: =SUM(X6:X9) -> 1370000 | Y10: =SUM(Y6:Y9) -> 2220000 | Z10: =SUM(Z6:Z9) -> 1000000 | AB10: =SUM(AB6:AB9) -> 1220000
A11: Output 2.2.2: National institutions have strengthened capacities for the conservation, restoration, and valorization of ecosystems and biodiversity, including with monitoring, information, protection and natural resources management systems, access to climate financing, and report on global commitments | B11: =D15 -> 14827319 | C11: FAO | D11: =SUM(I11+M11+Q11+U11+Y11) -> 10978709 | E11: =SUM(J11+N11+R11+V11+Z11) -> 9777578 | H11: =D11-E11 -> 1201131 | I11: 407578 | J11: 407578 | K11: GEF, core funds | L11: 0 | M11: 370000 | N11: 370000 | O11: GEF, core funds | P11: 0 | Q11: 4201131 | R11: 3000000 | T11: 1201131 | U11: 3000000 | V11: 3000000 | X11: 0 | Y11: 3000000 | Z11: 3000000 | AB11: 0
C12: UNDP | D12: =SUM(I12+M12+Q12+U12+Y12) -> 3000000 | E12: 817826 | H12: 2182174 | I12: 519527 | J12: 519527 | K12: GEF | L12: 0 | M12: 298299 | N12: 298299 | O12: GEF | P12: 0 | Q12: 782174 | R12: 0 | T12: 782174 | U12: 700000 | V12: 0 | X12: 700000 | Y12: 700000 | Z12: 0 | AB12: 700000
C13: UNEP | D13: 619782 | E13: 328422 | H13: 291360 | I13: 180000 | J13: 124000 | K13: Montreal Protocol | L13: 56000 | M13: 430600 | N13: 204422 | O13: Montreal Protocol, GEF, SOFF | P13: 226178 | Q13: 9182 | R13: 0 | T13: 9182 | U13: 0 | V13: 0 | X13: 0 | Y13: 0 | Z13: 0 | AB13: 0
C14: UNIDO | D14: 228828 | E14: 228828 | H14: 0 | I14: 149500 | J14: 149500 | K14: GCF | L14: 0 | M14: 79328 | N14: 79328 | O14: GCF | P14: 0 | Q14: 0 | R14: 0 | T14: 0 | U14: 0 | V14: 0 | X14: 0 | Y14: 0 | Z14: 0 | AB14: 0
C15: Total Output 2.2.2. | D15: =SUM(D11:D14) -> 14827319 | E15: =SUM(E11:E14) -> 11152654 | H15: =SUM(H11:H14) -> 3674665 | I15: =SUM(I11:I14) -> 1256605 | J15: =SUM(J11:J14) -> 1200605 | L15: =SUM(L11:L14) -> 56000 | M15: =SUM(M11:M14) -> 1178227 | N15: =SUM(N11:N14) -> 952049 | P15: =SUM(P11:P14) -> 226178 | Q15: =SUM(Q11:Q14) -> 4992487 | R15: =SUM(R11:R14) -> 3000000 | T15: =SUM(T11:T14) -> 1992487 | U15: =SUM(U11:U14) -> 3700000 | V15: =SUM(V11:V14) -> 3000000 | X15: =SUM(X11:X14) -> 700000 | Y15: =SUM(Y11:Y14) -> 3700000 | Z15: =SUM(Z11:Z14) -> 3000000 | AB15: =SUM(AB11:AB14) -> 700000
A16: Output 2.2.3: Legal and planning frameworks are improved and better implemented with participatory approaches in the management of environmental & natural resources, including affordable clean energy, and the preparedness and response to shocks. | B16: =D18 -> 6758023.6 | C16: UNESCO | D16: =SUM(I16+M16+Q16+U16+Y16) -> 8000 | E16: 0 | H16: =D16-E16 -> 8000 | I16: 0 | J16: 0 | L16: 0 | M16: 8000 | N16: 0 | P16: 8000 | Q16: 0 | R16: 0 | T16: 0 | U16: 0 | V16: 0 | X16: 0 | Y16: 0 | Z16: 0 | AB16: 0
C17: UNIDO | D17: 6750023.6 | E17: 1835603 | H17: 4914420.6 | I17: 266103 | J17: 266103 | K17: GEF; GCF | L17: 0 | M17: 1069500 | N17: 1069500 | O17: GEF; GCF | P17: 0 | Q17: 2138140.2 | R17: 500000 | S17: GEF | T17: 1638140.2 | U17: 1638140.2 | V17: 0 | X17: 1638140.2 | Y17: 1638140.2 | Z17: 0 | AB17: 1638140.2
C18: Total Output 2.2.3. | D18: =SUM(D16:D17) -> 6758023.6 | E18: =SUM(E16:E17) -> 1835603 | H18: =SUM(H16:H17) -> 4922420.6 | I18: =SUM(I16:I17) -> 266103 | J18: =SUM(J16:J17) -> 266103 | L18: =SUM(L16:L17) -> 0 | M18: =SUM(M16:M17) -> 1077500 | N18: =SUM(N16:N17) -> 1069500 | P18: =SUM(P16:P17) -> 8000 | Q18: =SUM(Q16:Q17) -> 2138140.2 | R18: =SUM(R16:R17) -> 500000 | T18: =SUM(T16:T17) -> 1638140.2 | U18: =SUM(U16:U17) -> 1638140.2 | V18: =SUM(V16:V17) -> 0 | X18: =SUM(X16:X17) -> 1638140.2 | Y18: =SUM(Y16:Y17) -> 1638140.2 | Z18: =SUM(Z16:Z17) -> 0 | AB18: =SUM(AB16:AB17) -> 1638140.2
A19: Output 2.2.4: Actors have better access to knowledge, innovative techniques and technologies for integrated gender-sensitive territorial planning, including decision-making about land and sea use, ecosystems’ healthy functioning and the sustainable increase of the services provided. | B19: =D22 -> 12250806 | C19: FAO | D19: =SUM(I19+M19+Q19+U19+Y19) -> 5000000 | E19: 2842352 | H19: =D19-E19 -> 2157648 | I19: 122352 | J19: 122352 | K19: GCF, GEF | L19: 0 | M19: 120000 | N19: 120000 | O19: GCF, GEF | P19: 0 | Q19: 1757648 | R19: 600000 | T19: 1157648 | U19: 1500000 | V19: 1000000 | X19: 500000 | Y19: 1500000 | Z19: 1000000 | AB19: 500000
C20: UNDP | D20: 7049806 | E20: 1866980 | H20: 5182826 | I20: 763490 | J20: 763490 | K20: GEF | L20: 0 | M20: 1103490 | N20: 1103490 | O20: GEF | P20: 0 | Q20: 2182826 | R20: 0 | T20: 2182826 | U20: 1500000 | V20: 0 | X20: 1500000 | Y20: 1500000 | Z20: 0 | AB20: 1500000
C21: UNESCO | D21: 201000 | E21: 184641 | F21: 400000 | G21: 143000 | H21: 16359 | I21: 143000 | J21: 143000 | K21: EU | L21: 0 | M21: 58000 | N21: 41641 | O21: Core funds, regular programme | P21: 16359 | Q21: 0 | R21: 0 | T21: 0 | U21: 0 | V21: 0 | X21: 0 | Y21: 0 | Z21: 0 | AB21: 0
C22: Total Output 2.2.4. | D22: =SUM(D19:D21) -> 12250806 | E22: =SUM(E19:E21) -> 4893973 | H22: =SUM(H19:H21) -> 7356833 | I22: =SUM(I19:I21) -> 1028842 | J22: =SUM(J19:J21) -> 1028842 | L22: =SUM(L19:L21) -> 0 | M22: =SUM(M19:M21) -> 1281490 | N22: =SUM(N19:N21) -> 1265131 | P22: =SUM(P19:P21) -> 16359 | Q22: =SUM(Q19:Q21) -> 3940474 | R22: =SUM(R19:R21) -> 600000 | T22: =SUM(T19:T21) -> 3340474 | U22: =SUM(U19:U21) -> 3000000 | V22: =SUM(V19:V21) -> 1000000 | X22: =SUM(X19:X21) -> 2000000 | Y22: =SUM(Y19:Y21) -> 3000000 | Z22: =SUM(Z19:Z21) -> 1000000 | AB22: =SUM(AB19:AB21) -> 2000000
A24: Grand Total Outcome 2.2 | D24: =SUM(D18,D15,D10,D22) -> 42325148.6 | E24: =SUM(E18,E15,E10,E22) -> 22158393 | H24: =SUM(H18,H15,H10,H22) -> 20166755.6 | I24: =SUM(I18,I15,I10,I22) -> 3160329 | J24: =SUM(J18+J15+J10,J22) -> 3104329 | L24: =SUM(L18+L15+L10,L22) -> 56000 | M24: =SUM(M18,M15,M10,M22) -> 4221217 | N24: =SUM(N18+N15+N10,N22) -> 3954064 | P24: =SUM(P18+P15+P10,P22) -> 267153 | Q24: =SUM(Q18,Q15,Q10,Q22) -> 13677322.2 | R24: =SUM(R18+R15+R10,R22) -> 5100000 | T24: =SUM(T18+T15+T10,T22) -> 8577322.2 | U24: =SUM(U18,U15,U10,U22) -> 10708140.2 | V24: =SUM(V18+V15+V10,V22) -> 5000000 | X24: =SUM(X18+X15+X10,X22) -> 5708140.2 | Y24: =SUM(Y18,Y15,Y10,Y22) -> 10558140.2 | Z24: =SUM(Z18+Z15+Z10,Z22) -> 5000000 | AB24: =SUM(AB18+AB15+AB10,AB22) -> 5558140.2

Sheet MYFF - Outcome 3.1
A1: Multi-Year Funding Framework (MYFF) - United Nations Sustainable Development Cooperation Framework (UNSDCF) 2023-2027 Cabo Verde
A2: Outcome 3.1: By 2027, more people, especially women, youth and those in vulnerable groups, freely exercise their rights, participate in, and benefit from, inclusive, resilient, transparent, and accountable institutions and a more modernized, transformative and effective system of democratic governance that upholds the rule of law, at national and local levels.
A3: Cooperation Framework Output | B3: Predicted cost of the output | C3: UN Entity
D4: MYFF (2023-2027) | I4: YEAR 1 (2023) | M4: YEAR 2 (2024) | Q4: YEAR 3 (2025) | U4: YEAR 4 (2026) | Y4: YEAR 5 (2027)
D5: Total Funding Required | E5: Available Funding | F5: Source of Available Funding | G5: Type of Available Funding (assessed, core, non-core) | H5: Funding to be Mobilized (D - E) | I5: Total Funding Required | J5: Available Funding | K5: Source of Available Funding | L5: Funding to be Mobilized | M5: Total Funding Required | N5: Available Funding | O5: Source of Available Funding | P5: Funding to be Mobilized | Q5: Total Funding Required | R5: Available Funding | S5: Source of Available Funding | T5: Funding to be Mobilized | U5: Total Funding Required | V5: Available Funding | W5: Source of Available Funding | X5: Funding to be Mobilized | Y5: Total Funding Required | Z5: Available Funding | AA5: Source of Available Funding | AB5: Funding to be Mobilized
A6: Output 3.1.1: More people, particularly women and youth and those living in vulnerable situations, are empowered to exercise their rights, individually or through stronger and more effective civil society organizations. | B6: =D8 -> 4550000 | C6: UNCTAD | D6: =SUM(I6+M6+Q6+U6+Y6) -> 1550000 | E6: 40000 | H6: =D6-E6 -> 1510000 | I6: 300000 | J6: 20000 | K6: Core Funding | L6: =I6-J6 -> 280000 | M6: 300000 | N6: 20000 | O6: Core Funding | P6: =M6-N6 -> 280000 | Q6: 350000 | R6: 0 | T6: =Q6-R6 -> 350000 | U6: 300000 | V6: 0 | X6: =U6-V6 -> 300000 | Y6: 300000 | Z6: 0 | AB6: =Y6-Z6 -> 300000
C7: UNDP | D7: 3000000 | E7: 30000 | H7: 2970000 | I7: 1027466 | J7: 30000 | K7: core funding | L7: 997466 | M7: 0 | N7: 0 | P7: 0 | Q7: 772534 | R7: 0 | T7: 772534 | U7: 600000 | V7: 0 | X7: 600000 | Y7: 600000 | Z7: 0 | AB7: 600000
C8: Total Output 3.1.1. | D8: =SUM(D6:D7) -> 4550000 | E8: =SUM(E6:E7) -> 70000 | H8: =SUM(H6:H7) -> 4480000 | I8: =SUM(I6:I7) -> 1327466 | J8: =SUM(J6:J7) -> 50000 | L8: =SUM(L6:L7) -> 1277466 | M8: =SUM(M6:M7) -> 300000 | N8: =SUM(N6:N7) -> 20000 | P8: =SUM(P6:P7) -> 280000 | Q8: =SUM(Q6:Q7) -> 1122534 | R8: =SUM(R6:R7) -> 0 | T8: =SUM(T6:T7) -> 1122534 | U8: =SUM(U6:U7) -> 900000 | V8: =SUM(V6:V7) -> 0 | X8: =SUM(X6:X7) -> 900000 | Y8: =SUM(Y6:Y7) -> 900000 | Z8: =SUM(Z6:Z7) -> 0 | AB8: =SUM(AB6:AB7) -> 900000
A9: Output 3.1.2: State institutions have enhanced capacities for more coherent, transparent, accountable, evidence and results-based, participative and innovative policy and strategy design and implementation at all levels to address structural barriers, enhance economic growth, reduce territorial and social disparities and advance gender equality | B9: =D16 -> 12894058 | C9: ILO | D9: =SUM(I9+M9+Q9+U9+Y9) -> 515509 | E9: =SUM(J9+N9+R9+V9+Z9) -> 234197 | H9: =D9-E9 -> 281312 | I9: 176731 | J9: 136731 | K9: Finland | L9: 40000 | M9: 120778 | N9: 97466 | O9: Finland | P9: 23312 | Q9: 88000 | R9: 0 | T9: 88000 | U9: 70000 | V9: 0 | X9: 70000 | Y9: 60000 | Z9: 0 | AB9: 60000
C10: IOM | D10: =SUM(I10+M10+Q10+U10+Y10) -> 1500000 | E10: =SUM(J10+N10+R10+V10+Z10) -> 912862 | H10: 587138 | I10: 820943 | J10: 820943 | K10: Denmark, IOM dev Fund | L10: 0 | M10: 91919 | N10: 91919 | O10: IOM dev Fund | P10: 0 | Q10: 287138 | R10: 0 | T10: 287138 | U10: 150000 | V10: 0 | X10: 150000 | Y10: 150000 | Z10: 0 | AB10: 150000
C11: OHRCHR | D11: =SUM(I11+M11+Q11+U11+Y11) -> 156500 | E11: 34500 | H11: 122000 | I11: 0 | J11: 0 | L11: 0 | M11: 19500 | N11: 17500 | O11: Core Funding | P11: 2000 | Q11: 47000 | R11: 17000 | T11: 30000 | U11: 45000 | V11: 0 | X11: 45000 | Y11: 45000 | Z11: 0 | AB11: 45000
C12: UN WOMEN | D12: 150000 | E12: 0 | H12: 150000 | I12: 0 | J12: 0 | L12: 0 | M12: 0 | N12: 0 | P12: 0 | Q12: 50000 | R12: 0 | T12: 50000 | U12: 50000 | V12: 0 | X12: 50000 | Y12: 50000 | Z12: 0 | AB12: 50000
C13: UNDP | D13: 8552049 | E13: 7744583 | H13: 807466 | I13: 162000 | J13: 142000 | K13: Core Funding | L13: 20000 | M13: 3435583 | N13: 3402583 | O13: Luxembourg, EU, core funding | P13: 33000 | Q13: 1954466 | R13: 1900000 | S13: Luxembourg, EU | T13: 54466 | U13: 1500000 | V13: 1300000 | W13: Luxembourg, EU | X13: 200000 | Y13: 1500000 | Z13: 1000000 | AA13: Luxembourg | AB13: 500000
C14: UNFPA | D14: 20000 | E14: 20000 | H14: 0 | I14: 0 | J14: 0 | L14: 0 | M14: 20000 | N14: 20000 | O14: Core Funding | P14: 0 | Q14: 0 | R14: 0 | T14: 0 | U14: 0 | V14: 0 | X14: 0 | Y14: 0 | Z14: 0 | AB14: 0
C15: UNHABITAT | D15: 2000000 | E15: 1550000 | H15: 450000 | I15: 200000 | J15: 0 | L15: 200000 | M15: 550000 | N15: 550000 | O15: Luxembourg | P15: 0 | Q15: 500000 | R15: 500000 | S15: Luxembourg | T15: 0 | U15: 500000 | V15: 500000 | W15: Luxembourg | X15: 0 | Y15: 250000 | Z15: 0 | AA15: Luxembourg | AB15: 250000
C16: Total Output 3.1.2. | D16: =SUM(D9:D15) -> 12894058 | E16: =SUM(E9:E15) -> 10496142 | H16: =SUM(H9:H15) -> 2397916 | I16: =SUM(I9:I15) -> 1359674 | J16: =SUM(J9:J15) -> 1099674 | L16: =SUM(L9:L15) -> 260000 | M16: =SUM(M9:M15) -> 4237780 | N16: =SUM(N9:N15) -> 4179468 | P16: =SUM(P9:P15) -> 58312 | Q16: =SUM(Q9:Q15) -> 2926604 | R16: =SUM(R9:R15) -> 2417000 | T16: =SUM(T9:T15) -> 509604 | U16: =SUM(U9:U15) -> 2315000 | V16: =SUM(V9:V15) -> 1800000 | X16: =SUM(X9:X15) -> 515000 | Y16: =SUM(Y9:Y15) -> 2055000 | Z16: =SUM(Z9:Z15) -> 1000000 | AB16: =SUM(AB9:AB15) -> 1055000
A17: Output 3.1.3: Public and private institutions at all levels have enhanced capacities to coordinate, develop partnerships and increase the mobilization of internal and external financial and technical resources, including from the Diaspora. | B17: =D25 -> 7090519.017 | C17: FAO | D17: =SUM(I17+M17+Q17+U17+Y17) -> 1699477 | E17: 436477 | H17: =D17-E17 -> 1263000 | I17: 315307 | J17: 315307 | K17: GEF | L17: 0 | M17: 121170 | N17: 121170 | O17: GEF | P17: 0 | Q17: 463000 | R17: 0 | T17: 463000 | U17: 400000 | V17: 0 | X17: 400000 | Y17: 400000 | Z17: 0 | AB17: 400000
C18: IOM | D18: 250000 | E18: 110044 | H18: 139956 | I18: 58000 | J18: 58000 | K18: IOM dev Fund | L18: 0 | M18: 52044 | N18: 52044 | O18: IOM dev Fund | P18: 0 | Q18: 49956 | R18: 0 | T18: 49956 | U18: 45000 | V18: 0 | X18: 45000 | Y18: 45000 | Z18: 0 | AB18: 45000
C19: UNCTAD | D19: 400000 | E19: 80000 | H19: 320000 | I19: 0 | J19: 0 | L19: 0 | M19: 80000 | N19: 80000 | O19: UN dev account | P19: 0 | Q19: 120000 | R19: 0 | T19: 120000 | U19: 100000 | V19: 0 | X19: 100000 | Y19: 100000 | Z19: 0 | AB19: 100000
C20: UNDP | D20: 3000000 | E20: 360000 | H20: 2640000 | I20: 850000 | J20: 349000 | K20: Joint SDG, core funding | L20: 501000 | M20: 75000 | N20: 11000 | O20: Core Funding | P20: 64000 | Q20: 775000 | R20: 0 | T20: 775000 | U20: 650000 | V20: 0 | X20: 650000 | Y20: 650000 | Z20: 0 | AB20: 650000
C21: UNESCO | D21: 476000 | E21: 50000 | H21: 426000 | I21: 90000 | J21: 50000 | K21: Core Funding | L21: 40000 | M21: 0 | N21: 0 | P21: 0 | Q21: 156000 | R21: 0 | T21: 156000 | U21: 130000 | V21: 0 | X21: 130000 | Y21: 100000 | Z21: 0 | AB21: 100000
C22: UNFPA | D22: 480000 | E22: 335276 | H22: 144724 | I22: 280000 | J22: 240000 | L22: 40000 | M22: 200000 | N22: 95276 | P22: 104724 | Q22: 0 | R22: 0 | T22: 0 | U22: 0 | V22: 0 | X22: 0 | Y22: 0 | Z22: 0 | AB22: 0
C23: UNICEF | D23: 250000 | E23: 96000 | H23: 154000 | I23: 100000 | J23: 96000 | L23: 4000 | M23: 0 | N23: 0 | P23: 0 | Q23: 50000 | R23: 0 | T23: 50000 | U23: 50000 | V23: 0 | X23: 50000 | Y23: 50000 | Z23: 0 | AB23: 50000
C24: UNIDO | D24: 535042.0168 | E24: 245042.0168 | H24: 290000 | I24: 61000 | J24: 61000 | K24: Core Funding | L24: 0 | M24: 59000 | N24: 59000 | O24: Core Funding | P24: 0 | Q24: 194894.958 | R24: 59894.95798 | S24: Core Funding | T24: 135000 | U24: 200147.0588 | V24: 65147.05882 | W24: Core Funding | X24: 135000 | Y24: 20000 | Z24: 0 | AB24: 20000
C25: Total Output 3.1.3. | D25: =SUM(D17:D24) -> 7090519.017 | E25: =SUM(E17:E24) -> 1712839.017 | H25: =SUM(H17:H24) -> 5377680 | I25: =SUM(I17:I24) -> 1754307 | J25: =SUM(J17:J24) -> 1169307 | L25: =SUM(L17:L24) -> 585000 | M25: =SUM(M17:M24) -> 587214 | N25: =SUM(N17:N24) -> 418490 | P25: =SUM(P17:P24) -> 168724 | Q25: =SUM(Q17:Q24) -> 1808850.958 | R25: =SUM(R17:R24) -> 59894.95798 | T25: =SUM(T17:T24) -> 1748956 | U25: =SUM(U17:U24) -> 1575147.059 | V25: =SUM(V17:V24) -> 65147.05882 | X25: =SUM(X17:X24) -> 1510000 | Y25: =SUM(Y17:Y24) -> 1365000 | Z25: =SUM(Z17:Z24) -> 0 | AB25: =SUM(AB17:AB24) -> 1365000
A26: Output 3.1.4: Justice and security systems are strengthened to improve access, be accountable, effective and efficient, prevent violence, fight against illicit trafficking and crimes, especially those against women and children, and provide effective remedy. | B26: =D30 -> 2983000 | C26: IOM | D26: =SUM(I26+M26+Q26+U26+Y26) -> 200000 | E26: 115298 | H26: =D26-E26 -> 84702 | I26: 43000 | J26: 43000 | K26: USA, Spain | L26: 0 | M26: 72298 | N26: 72298 | O26: USA, Spain | P26: 0 | Q26: 34702 | R26: 0 | T26: 34702 | U26: 25000 | V26: 0 | X26: 25000 | Y26: 25000 | Z26: 0 | AB26: 25000
C27: UNDP | D27: 1000000 | E27: 20000 | H27: 980000 | I27: 65000 | J27: 20000 | L27: 45000 | M27: 0 | N27: 0 | P27: 0 | Q27: 335000 | R27: 0 | T27: 335000 | U27: 300000 | V27: 0 | X27: 300000 | Y27: 300000 | Z27: 0 | AB27: 300000
C28: UNICEF | D28: 100000 | E28: 60000 | H28: 40000 | I28: 100000 | J28: 60000 | L28: 40000 | M28: 0 | N28: 0 | P28: 0 | Q28: 0 | R28: 0 | T28: 0 | U28: 0 | V28: 0 | X28: 0 | Y28: 0 | Z28: 0 | AB28: 0
C29: UNODC | D29: 1683000 | E29: 1359000 | H29: 324000 | I29: 943000 | J29: 983000 | K29: USA, Germany, EU | L29: -40000 | M29: 580000 | N29: 376000 | O29: EU, USA, Germany | P29: 204000 | Q29: 160000 | R29: 0 | T29: 160000 | U29: 0 | V29: 0 | X29: 0 | Y29: 0 | Z29: 0 | AB29: 0
C30: Total Output 3.1.4. | D30: =SUM(D26:D29) -> 2983000 | E30: =SUM(E26:E29) -> 1554298 | H30: =SUM(H26:H29) -> 1428702 | I30: =SUM(I26:I29) -> 1151000 | J30: =SUM(J26:J29) -> 1106000 | L30: =SUM(L26:L29) -> 45000 | M30: =SUM(M26:M29) -> 652298 | N30: =SUM(N26:N29) -> 448298 | P30: =SUM(P26:P29) -> 204000 | Q30: =SUM(Q26:Q29) -> 529702 | R30: =SUM(R26:R29) -> 0 | T30: =SUM(T26:T29) -> 529702 | U30: =SUM(U26:U29) -> 325000 | V30: =SUM(V26:V29) -> 0 | X30: =SUM(X26:X29) -> 325000 | Y30: =SUM(Y26:Y29) -> 325000 | Z30: =SUM(Z26:Z29) -> 0 | AB30: =SUM(AB26:AB29) -> 325000
A32: Grand Total Outcome 3.1 | D32: =SUM(D25,D16,D8,D30) -> 27517577.02 | E32: =SUM(E25,E16,E8,E30) -> 13833279.02 | H32: =SUM(H25,H16,H8,H30) -> 13684298 | I32: =SUM(I25,I16,I8,I30) -> 5592447 | J32: =SUM(J25+J16+J8,J30) -> 3424981 | L32: =SUM(L25+L16+L8,L30) -> 2167466 | M32: =SUM(M25,M16,M8,M30) -> 5777292 | N32: =SUM(N25+N16+N8,N30) -> 5066256 | P32: =SUM(P25+P16+P8,P30) -> 711036 | Q32: =SUM(Q25,Q16,Q8,Q30) -> 6387690.958 | R32: =SUM(R25+R16+R8,R30) -> 2476894.958 | T32: =SUM(T25+T16+T8,T30) -> 3910796 | U32: =SUM(U25,U16,U8,U30) -> 5115147.059 | V32: =SUM(V25+V16+V8,V30) -> 1865147.059 | X32: =SUM(X25+X16+X8,X30) -> 3250000 | Y32: =SUM(Y25,Y16,Y8,Y30) -> 4645000 | Z32: =SUM(Z25+Z16+Z8,Z30) -> 1000000 | AB32: =SUM(AB25+AB16+AB8,AB30) -> 3645000

Sheet Sheet1 (hidden)
E1: Hayat Kareema Districts | H1: Hayat Kareema Village
E2: Abnoub | F2: Enhancing Infrastructure Service Pillar | H2: Al Atmour qubli
E3: Abu Al Matameer | F3: Human Capital Development Pillar | H3: aba alwaqf
E4: Abu Homus | F4: Social Protection Pillar | H4: abbas al akkad
E5: Abu Korkas | F5: Economic Development Pillar | H5: abbasa
E6: Abu Teag | H6: abd al azim zahir
E7: Abu Tesht | H7: abd almoneim riyad
A8: QCPR | E8: Al Blina | H8: abeadih damanhur
A9: Policy development and enhancement & thought leadership | E9: Al Edwah | H9: abis alkhamisa watawabueuha
A10: Capacity development/technical assistance | E10: Al Fatah | H10: abis almustajiduh
A11: Direct support/service delivery | E11: Al Housinia | H11: abis alrabiea watawabueuha
A12: Normative Support | E12: Al Maraghah | H12: abis althalitha watawabieaha
A13: Data Collection and Analysis | E13: Al Minshah | H13: abshada
A14: Convening/Partnerships/Knowledge Sharing | E14: Al Osyrat | H14: abshadat
A15: Other (including coordination) | E15: Al Saf | H15: abu alhadar
E16: Al Shohdaa | H16: abu alhoul, abu bakr
A17: 0 | E17: Alwakef | H17: abu alnasr
A18: 1 | E18: Armant | H18: abu awala wamanashatuh
A19: 2 | E19: Ashmoun | H19: abu aziz
A20: 3 | E20: Atfeh | H20: abu diab gharb
E21: Atsa | H21: abu diab sharq
A22: YES | E22: Beba | H22: abu hurairah
A23: NO | E23: Borg Alarab | H23: abu jalal
E24: Daer Mwas | H24: abu jndyr
E25: Dairout | H25: abu kals
E26: Damanhour | H26: abu manaa bahari
E27: Dar Alsalam | H27: abu manaa gharb
E28: Deshna | H28: abu manaa qibli
E29: El Qantara Sharq | H29: abu manaa sharq
E30: Farafra | H30: abu minqar
E31: Farashout | H31: abu qultah
E32: Gerga | H32: abu rashid
E33: Gerga city | H33: abu shariban
E34: Housh Issa | H34: abu shuwshah
E35: Idfo | H35: abu sir difnou
E36: Isna | H36: abu akhurs
E37: Kafr El Dawar | H37: abu alikhazr
E38: Kafr Saad | H38: abu almatamir albaharia
E39: Kesm Kafr El Dawar | H39: abu alnawm w tawabueuha
E40: Kom Aumbo | H40: abu alsafa
E41: Maghaghah | H41: abu alshaqaaf
E42: Malwai | H42: abu basht
E43: Manflout | H43: abu dafiha
E44: Motobes | H44: abu karim
E45: Naser | H45: abu khalaqa
E46: Quos | H46: abu qurqas albalad
E47: Sadfa | H47: abu raqabuh
E48: Sahel Selim | H48: abu zaharih
E49: Saqultah | H49: abusir
E50: Shbeen Al kanter | H50: abwaeiad
E51: Shrbeen | H51: abyanah
E52: Tama | H52: abyas alssadisuh watawabueuha
E53: Wadi Al Natroun | H53: abyouha
E54: Yousef Al Sedik | H54: adfw qibli
E55: Zefta | H55: aflaquh
H56: Al Abtal
H57: al amal
H58: al aqdam - 5
H59: al Ashraaf
H60: al awsat samhud
H61: al emam malik
H62: al eman
H63: Al Ghurizat
H64: al islah
H65: al kom al akhdar
H66: Al Mhariza
H67: Al Rghamuh sharq
H68: al salam
H69: al saleheyah 3(aliabtal)
H70: al saleheyah-7 al ahrar
H71: Al Sulimat
H72: alabbasseya aljadidia
H73: alablaq
H74: alabqiein
H75: aladaruh
H76: aladaymuh
H77: alaghanuh
H78: alahayuwa gharb
H79: alahmadih
H80: alahmadih
H81: alahraaz
H82: Alahrar
H83: alainjab
H84: alaiqsas
H85: alakhsas
H86: alakhyuwh
H87: alakrad
H88: alalayqat
H89: alamaaria algharbia
H90: alamaariuh alsharqia
H91: alamayida
H92: alaoufuy
H93: alaqab
H94: alaqadmuh
H95: alaqleyah
H96: alaqwaz
H97: alarin bahari
H98: alarin qibli
H99: alarkaa
H100: alarqoub
H101: alarwaa
H102: alasakira
H103: alashmunin
H104: alasraa walmieraj
H105: alatamina
H106: alataminuh walmazarah
H107: alattara
H108: alattayat
H109: alawamir bahari
H110: alawamir qibli
H111: alawamir wabani biraza
H112: alawamiyah
H113: alazimuh
H114: albadarman
H115: albadrawy
H116: albahari samhud
H117: albahgour
H118: albajia bisheikh youssif
H119: albakaria
H120: albalabish almustajiduh
H121: albalabish bahari
H122: albalabish qibli
H123: albalaeizatayn
H124: albalayizuh
H125: albaraba
H126: albaraj
H127: albarajil
H128: albaraka
H129: albarba
H130: albarba
H131: albarmel
H132: albarsha
H133: albarud gharb
H134: albarud shrq
H135: albasali
H136: albasiliuh alwasta
H137: albasiliuh qibli
H138: albawarik
H139: albayadi walqaria
H140: albayadia bialnaazir
H141: albayda
H142: albrnoji
H143: albtakh
H144: albusaliqun
H145: albusqalun
H146: aldababishuh
H147: aldahsah
H148: aldama
H149: aldanaquluh
H150: aldaqadiq
H151: aldawajin
H152: aldawir
H153: aldawirat
H154: aldayusamy
H155: aldihria
H156: aldiymuqrat
H157: aldiyr
H158: aldubaeunuh
H159: alduwmariuh
H160: aleafadiruh
H161: alealy
H162: aleasirat
H163: aleataminuh
H164: aleawnuh
H165: aleayadia
H166: aleayayishuh
H167: aleayishuh
H168: aleazuh
H169: aleimria
H170: Aleizba
H171: alekrysha
H172: aleudih
H173: aleumur
H174: aleutiyat alqibliuh
H175: alezbet almustajiduh
H176: alezibet
H177: alfahimiiyn
H178: alfima
H179: alfqaea
H180: alfuqaie
H181: algehad
H182: alghaba
H183: alghabah
H184: alghabat
H185: alghanimia
H186: algharaq bahari
H187: algharaq qibli
H188: algharib
H189: algharib
H190: algharira
H191: alghariruh
H192: alghurbaniat
H193: alhabil walshalulia
H194: alhabilat algharbia
H195: alhabilat alsharqia
H196: alhadiquh
H197: alhajar
H198: alhajaziuh
H199: alhajir bawilad yehia
H200: alhajir w tawabueuha
... 1201 more rows
